{"text_format":"1","workbook":"xlsx","n_sheets":4,"sheets":["Welcome","Data","PriceList","Lists"],"not_rendered":{"charts":0,"images":1,"macros":1,"external_links":0,"defined_names":15,"comments":1,"pivot_tables":0},"unopened":[],"bounds":{"document_bytes":16777216,"sheet_cells":100000,"rows_first":2000,"rows_last":500,"rows_between":2000,"halvings":0,"cell_chars":16384,"cell_head_chars":4096},"cells_cut":0,"cells_raw":0,"read":"whole","date_system":"1900"}

{"sheet":"Welcome","index":0,"n_rows":33,"n_cols":12,"rows_kept":33,"cut":false,"hidden":false,"merged":[[28,1,28,2],[29,1,29,2],[30,1,30,2],[32,1,32,3],[1,1,1,4],[2,1,2,10],[0,1,0,14],[23,1,23,2],[25,1,25,2],[26,1,26,2],[27,1,27,2],[1,5,1,8],[2,11,2,14]]}
[null," Corporate Gifts Order Form 2025"]
[null,"If you ordered with us last year, please call us at 1-800-434-0500 8am-5pm or email us at Corporateorders@bostoncoffeecake.com for your 2023 recipient list. ",null,null,null,"Corporateorders@bostoncoffeecake.com",null,null,null,"for your 2024 recipient list. "]
[null,"Use the data tab for this form to enter your new gift orders.  When complete, save your spreadsheet to your desktop and then email it as an attachment to ",null,null,null,null,null,null,null,null,null,"Corporateorders@bostoncoffeecake.com"]
[]
[]
[]
[]
[]
[]
[]
[]
[]
[]
[]
[]
[]
[]
[]
[]
[]
[null,"     PLEASE COMPLETE your company information below:"]
[]
[null,"     CUSTOMER CONTACT INFORMATION:   "]
[null,"Customer Number",null," "]
[null,null,"Company Name"]
[null,"Contact Name",null," "]
[null,"Billing Address 1",null," "]
[null," Billing Address 2",null," "]
[null,"City, State, Zip ",null," "]
[null,"Phone",null," "]
[null,"Email",null," "]
[]
[null,"Your Total Order (not including shipping & discounts) = ",null,null,{"$f":"SUM(Data!D2:D427)","v":0}]

{"sheet":"Data","index":1,"n_rows":1003,"n_cols":22,"rows_kept":1003,"cut":false,"hidden":false,"merged":[]}
["Ship_Date","Quantity","Item","Price","Honorific","First Name","Last Name","Suffix","Company","Address_1","Address_2","City","State","Country","Zip","Phone","Greeting1","Greeting2","Greeting3","Greeting4","Greeting5","Greeting6"]
[null,null,null,{"$f":"IFERROR(VLOOKUP(C2,PriceList!A:C,3,FALSE),\"\")","v":""}]
[null,null,null,{"$f":"IFERROR(VLOOKUP(C3,PriceList!A:C,3,FALSE),\"\")","v":""}]
[null,null,null,{"$f":"IFERROR(VLOOKUP(C4,PriceList!A:C,3,FALSE),\"\")","v":""}]
[null,null,null,{"$f":"IFERROR(VLOOKUP(C5,PriceList!A:C,3,FALSE),\"\")","v":""}]
[null,null,null,{"$f":"IFERROR(VLOOKUP(C6,PriceList!A:C,3,FALSE),\"\")","v":""}]
[null,null,null,{"$f":"IFERROR(VLOOKUP(C7,PriceList!A:C,3,FALSE),\"\")","v":""}]
[null,null,null,{"$f":"IFERROR(VLOOKUP(C8,PriceList!A:C,3,FALSE),\"\")","v":""}]
[null,null,null,{"$f":"IFERROR(VLOOKUP(C9,PriceList!A:C,3,FALSE),\"\")","v":""}]
[null,null,null,{"$f":"IFERROR(VLOOKUP(C10,PriceList!A:C,3,FALSE),\"\")","v":""}]
[null,null,null,{"$f":"IFERROR(VLOOKUP(C11,PriceList!A:C,3,FALSE),\"\")","v":""}]
[null,null,null,{"$f":"IFERROR(VLOOKUP(C12,PriceList!A:C,3,FALSE),\"\")","v":""}]
[null,null,null,{"$f":"IFERROR(VLOOKUP(C13,PriceList!A:C,3,FALSE),\"\")","v":""}]
[null,null,null,{"$f":"IFERROR(VLOOKUP(C14,PriceList!A:C,3,FALSE),\"\")","v":""}]
[null,null,null,{"$f":"IFERROR(VLOOKUP(C15,PriceList!A:C,3,FALSE),\"\")","v":""}]
[null,null,null,{"$f":"IFERROR(VLOOKUP(C16,PriceList!A:C,3,FALSE),\"\")","v":""}]
[null,null,null,{"$f":"IFERROR(VLOOKUP(C17,PriceList!A:C,3,FALSE),\"\")","v":""}]
[null,null,null,{"$f":"IFERROR(VLOOKUP(C18,PriceList!A:C,3,FALSE),\"\")","v":""}]
[null,null,null,{"$f":"IFERROR(VLOOKUP(C19,PriceList!A:C,3,FALSE),\"\")","v":""}]
[null,null,null,{"$f":"IFERROR(VLOOKUP(C20,PriceList!A:C,3,FALSE),\"\")","v":""}]
[null,null,null,{"$f":"IFERROR(VLOOKUP(C21,PriceList!A:C,3,FALSE),\"\")","v":""}]
[null,null,null,{"$f":"IFERROR(VLOOKUP(C22,PriceList!A:C,3,FALSE),\"\")","v":""}]
[null,null,null,{"$f":"IFERROR(VLOOKUP(C23,PriceList!A:C,3,FALSE),\"\")","v":""}]
[null,null,null,{"$f":"IFERROR(VLOOKUP(C24,PriceList!A:C,3,FALSE),\"\")","v":""}]
[null,null,null,{"$f":"IFERROR(VLOOKUP(C25,PriceList!A:C,3,FALSE),\"\")","v":""}]
[null,null,null,{"$f":"IFERROR(VLOOKUP(C26,PriceList!A:C,3,FALSE),\"\")","v":""}]
[null,null,null,{"$f":"IFERROR(VLOOKUP(C27,PriceList!A:C,3,FALSE),\"\")","v":""}]
[null,null,null,{"$f":"IFERROR(VLOOKUP(C28,PriceList!A:C,3,FALSE),\"\")","v":""}]
[null,null,null,{"$f":"IFERROR(VLOOKUP(C29,PriceList!A:C,3,FALSE),\"\")","v":""}]
[null,null,null,{"$f":"IFERROR(VLOOKUP(C30,PriceList!A:C,3,FALSE),\"\")","v":""}]
[null,null,null,{"$f":"IFERROR(VLOOKUP(C31,PriceList!A:C,3,FALSE),\"\")","v":""}]
[null,null,null,{"$f":"IFERROR(VLOOKUP(C32,PriceList!A:C,3,FALSE),\"\")","v":""}]
[null,null,null,{"$f":"IFERROR(VLOOKUP(C33,PriceList!A:C,3,FALSE),\"\")","v":""}]
[null,null,null,{"$f":"IFERROR(VLOOKUP(C34,PriceList!A:C,3,FALSE),\"\")","v":""}]
[null,null,null,{"$f":"IFERROR(VLOOKUP(C35,PriceList!A:C,3,FALSE),\"\")","v":""}]
[null,null,null,{"$f":"IFERROR(VLOOKUP(C36,PriceList!A:C,3,FALSE),\"\")","v":""}]
[null,null,null,{"$f":"IFERROR(VLOOKUP(C37,PriceList!A:C,3,FALSE),\"\")","v":""}]
[null,null,null,{"$f":"IFERROR(VLOOKUP(C38,PriceList!A:C,3,FALSE),\"\")","v":""}]
[null,null,null,{"$f":"IFERROR(VLOOKUP(C39,PriceList!A:C,3,FALSE),\"\")","v":""}]
[null,null,null,{"$f":"IFERROR(VLOOKUP(C40,PriceList!A:C,3,FALSE),\"\")","v":""}]
[null,null,null,{"$f":"IFERROR(VLOOKUP(C41,PriceList!A:C,3,FALSE),\"\")","v":""}]
[null,null,null,{"$f":"IFERROR(VLOOKUP(C42,PriceList!A:C,3,FALSE),\"\")","v":""}]
[null,null,null,{"$f":"IFERROR(VLOOKUP(C43,PriceList!A:C,3,FALSE),\"\")","v":""}]
[null,null,null,{"$f":"IFERROR(VLOOKUP(C44,PriceList!A:C,3,FALSE),\"\")","v":""}]
[null,null,null,{"$f":"IFERROR(VLOOKUP(C45,PriceList!A:C,3,FALSE),\"\")","v":""}]
[null,null,null,{"$f":"IFERROR(VLOOKUP(C46,PriceList!A:C,3,FALSE),\"\")","v":""}]
[null,null,null,{"$f":"IFERROR(VLOOKUP(C47,PriceList!A:C,3,FALSE),\"\")","v":""}]
[null,null,null,{"$f":"IFERROR(VLOOKUP(C48,PriceList!A:C,3,FALSE),\"\")","v":""}]
[null,null,null,{"$f":"IFERROR(VLOOKUP(C49,PriceList!A:C,3,FALSE),\"\")","v":""}]
[null,null,null,{"$f":"IFERROR(VLOOKUP(C50,PriceList!A:C,3,FALSE),\"\")","v":""}]
[null,null,null,{"$f":"IFERROR(VLOOKUP(C51,PriceList!A:C,3,FALSE),\"\")","v":""}]
[null,null,null,{"$f":"IFERROR(VLOOKUP(C52,PriceList!A:C,3,FALSE),\"\")","v":""}]
[null,null,null,{"$f":"IFERROR(VLOOKUP(C53,PriceList!A:C,3,FALSE),\"\")","v":""}]
[null,null,null,{"$f":"IFERROR(VLOOKUP(C54,PriceList!A:C,3,FALSE),\"\")","v":""}]
[null,null,null,{"$f":"IFERROR(VLOOKUP(C55,PriceList!A:C,3,FALSE),\"\")","v":""}]
[null,null,null,{"$f":"IFERROR(VLOOKUP(C56,PriceList!A:C,3,FALSE),\"\")","v":""}]
[null,null,null,{"$f":"IFERROR(VLOOKUP(C57,PriceList!A:C,3,FALSE),\"\")","v":""}]
[null,null,null,{"$f":"IFERROR(VLOOKUP(C58,PriceList!A:C,3,FALSE),\"\")","v":""}]
[null,null,null,{"$f":"IFERROR(VLOOKUP(C59,PriceList!A:C,3,FALSE),\"\")","v":""}]
[null,null,null,{"$f":"IFERROR(VLOOKUP(C60,PriceList!A:C,3,FALSE),\"\")","v":""}]
[null,null,null,{"$f":"IFERROR(VLOOKUP(C61,PriceList!A:C,3,FALSE),\"\")","v":""}]
[null,null,null,{"$f":"IFERROR(VLOOKUP(C62,PriceList!A:C,3,FALSE),\"\")","v":""}]
[null,null,null,{"$f":"IFERROR(VLOOKUP(C63,PriceList!A:C,3,FALSE),\"\")","v":""}]
[null,null,null,{"$f":"IFERROR(VLOOKUP(C64,PriceList!A:C,3,FALSE),\"\")","v":""}]
[null,null,null,{"$f":"IFERROR(VLOOKUP(C65,PriceList!A:C,3,FALSE),\"\")","v":""}]
[null,null,null,{"$f":"IFERROR(VLOOKUP(C66,PriceList!A:C,3,FALSE),\"\")","v":""}]
[null,null,null,{"$f":"IFERROR(VLOOKUP(C67,PriceList!A:C,3,FALSE),\"\")","v":""}]
[null,null,null,{"$f":"IFERROR(VLOOKUP(C68,PriceList!A:C,3,FALSE),\"\")","v":""}]
[null,null,null,{"$f":"IFERROR(VLOOKUP(C69,PriceList!A:C,3,FALSE),\"\")","v":""}]
[null,null,null,{"$f":"IFERROR(VLOOKUP(C70,PriceList!A:C,3,FALSE),\"\")","v":""}]
[null,null,null,{"$f":"IFERROR(VLOOKUP(C71,PriceList!A:C,3,FALSE),\"\")","v":""}]
[null,null,null,{"$f":"IFERROR(VLOOKUP(C72,PriceList!A:C,3,FALSE),\"\")","v":""}]
[null,null,null,{"$f":"IFERROR(VLOOKUP(C73,PriceList!A:C,3,FALSE),\"\")","v":""}]
[null,null,null,{"$f":"IFERROR(VLOOKUP(C74,PriceList!A:C,3,FALSE),\"\")","v":""}]
[null,null,null,{"$f":"IFERROR(VLOOKUP(C75,PriceList!A:C,3,FALSE),\"\")","v":""}]
[null,null,null,{"$f":"IFERROR(VLOOKUP(C76,PriceList!A:C,3,FALSE),\"\")","v":""}]
[null,null,null,{"$f":"IFERROR(VLOOKUP(C77,PriceList!A:C,3,FALSE),\"\")","v":""}]
[null,null,null,{"$f":"IFERROR(VLOOKUP(C78,PriceList!A:C,3,FALSE),\"\")","v":""}]
[null,null,null,{"$f":"IFERROR(VLOOKUP(C79,PriceList!A:C,3,FALSE),\"\")","v":""}]
[null,null,null,{"$f":"IFERROR(VLOOKUP(C80,PriceList!A:C,3,FALSE),\"\")","v":""}]
[null,null,null,{"$f":"IFERROR(VLOOKUP(C81,PriceList!A:C,3,FALSE),\"\")","v":""}]
[null,null,null,{"$f":"IFERROR(VLOOKUP(C82,PriceList!A:C,3,FALSE),\"\")","v":""}]
[null,null,null,{"$f":"IFERROR(VLOOKUP(C83,PriceList!A:C,3,FALSE),\"\")","v":""}]
[null,null,null,{"$f":"IFERROR(VLOOKUP(C84,PriceList!A:C,3,FALSE),\"\")","v":""}]
[null,null,null,{"$f":"IFERROR(VLOOKUP(C85,PriceList!A:C,3,FALSE),\"\")","v":""}]
[null,null,null,{"$f":"IFERROR(VLOOKUP(C86,PriceList!A:C,3,FALSE),\"\")","v":""}]
[null,null,null,{"$f":"IFERROR(VLOOKUP(C87,PriceList!A:C,3,FALSE),\"\")","v":""}]
[null,null,null,{"$f":"IFERROR(VLOOKUP(C88,PriceList!A:C,3,FALSE),\"\")","v":""}]
[null,null,null,{"$f":"IFERROR(VLOOKUP(C89,PriceList!A:C,3,FALSE),\"\")","v":""}]
[null,null,null,{"$f":"IFERROR(VLOOKUP(C90,PriceList!A:C,3,FALSE),\"\")","v":""}]
[null,null,null,{"$f":"IFERROR(VLOOKUP(C91,PriceList!A:C,3,FALSE),\"\")","v":""}]
[null,null,null,{"$f":"IFERROR(VLOOKUP(C92,PriceList!A:C,3,FALSE),\"\")","v":""}]
[null,null,null,{"$f":"IFERROR(VLOOKUP(C93,PriceList!A:C,3,FALSE),\"\")","v":""}]
[null,null,null,{"$f":"IFERROR(VLOOKUP(C94,PriceList!A:C,3,FALSE),\"\")","v":""}]
[null,null,null,{"$f":"IFERROR(VLOOKUP(C95,PriceList!A:C,3,FALSE),\"\")","v":""}]
[null,null,null,{"$f":"IFERROR(VLOOKUP(C96,PriceList!A:C,3,FALSE),\"\")","v":""}]
[null,null,null,{"$f":"IFERROR(VLOOKUP(C97,PriceList!A:C,3,FALSE),\"\")","v":""}]
[null,null,null,{"$f":"IFERROR(VLOOKUP(C98,PriceList!A:C,3,FALSE),\"\")","v":""}]
[null,null,null,{"$f":"IFERROR(VLOOKUP(C99,PriceList!A:C,3,FALSE),\"\")","v":""}]
[null,null,null,{"$f":"IFERROR(VLOOKUP(C100,PriceList!A:C,3,FALSE),\"\")","v":""}]
[null,null,null,{"$f":"IFERROR(VLOOKUP(C101,PriceList!A:C,3,FALSE),\"\")","v":""}]
[null,null,null,{"$f":"IFERROR(VLOOKUP(C102,PriceList!A:C,3,FALSE),\"\")","v":""}]
[null,null,null,{"$f":"IFERROR(VLOOKUP(C103,PriceList!A:C,3,FALSE),\"\")","v":""}]
[null,null,null,{"$f":"IFERROR(VLOOKUP(C104,PriceList!A:C,3,FALSE),\"\")","v":""}]
[null,null,null,{"$f":"IFERROR(VLOOKUP(C105,PriceList!A:C,3,FALSE),\"\")","v":""}]
[null,null,null,{"$f":"IFERROR(VLOOKUP(C106,PriceList!A:C,3,FALSE),\"\")","v":""}]
[null,null,null,{"$f":"IFERROR(VLOOKUP(C107,PriceList!A:C,3,FALSE),\"\")","v":""}]
[null,null,null,{"$f":"IFERROR(VLOOKUP(C108,PriceList!A:C,3,FALSE),\"\")","v":""}]
[null,null,null,{"$f":"IFERROR(VLOOKUP(C109,PriceList!A:C,3,FALSE),\"\")","v":""}]
[null,null,null,{"$f":"IFERROR(VLOOKUP(C110,PriceList!A:C,3,FALSE),\"\")","v":""}]
[null,null,null,{"$f":"IFERROR(VLOOKUP(C111,PriceList!A:C,3,FALSE),\"\")","v":""}]
[null,null,null,{"$f":"IFERROR(VLOOKUP(C112,PriceList!A:C,3,FALSE),\"\")","v":""}]
[null,null,null,{"$f":"IFERROR(VLOOKUP(C113,PriceList!A:C,3,FALSE),\"\")","v":""}]
[null,null,null,{"$f":"IFERROR(VLOOKUP(C114,PriceList!A:C,3,FALSE),\"\")","v":""}]
[null,null,null,{"$f":"IFERROR(VLOOKUP(C115,PriceList!A:C,3,FALSE),\"\")","v":""}]
[null,null,null,{"$f":"IFERROR(VLOOKUP(C116,PriceList!A:C,3,FALSE),\"\")","v":""}]
[null,null,null,{"$f":"IFERROR(VLOOKUP(C117,PriceList!A:C,3,FALSE),\"\")","v":""}]
[null,null,null,{"$f":"IFERROR(VLOOKUP(C118,PriceList!A:C,3,FALSE),\"\")","v":""}]
[null,null,null,{"$f":"IFERROR(VLOOKUP(C119,PriceList!A:C,3,FALSE),\"\")","v":""}]
[null,null,null,{"$f":"IFERROR(VLOOKUP(C120,PriceList!A:C,3,FALSE),\"\")","v":""}]
[null,null,null,{"$f":"IFERROR(VLOOKUP(C121,PriceList!A:C,3,FALSE),\"\")","v":""}]
[null,null,null,{"$f":"IFERROR(VLOOKUP(C122,PriceList!A:C,3,FALSE),\"\")","v":""}]
[null,null,null,{"$f":"IFERROR(VLOOKUP(C123,PriceList!A:C,3,FALSE),\"\")","v":""}]
[null,null,null,{"$f":"IFERROR(VLOOKUP(C124,PriceList!A:C,3,FALSE),\"\")","v":""}]
[null,null,null,{"$f":"IFERROR(VLOOKUP(C125,PriceList!A:C,3,FALSE),\"\")","v":""}]
[null,null,null,{"$f":"IFERROR(VLOOKUP(C126,PriceList!A:C,3,FALSE),\"\")","v":""}]
[null,null,null,{"$f":"IFERROR(VLOOKUP(C127,PriceList!A:C,3,FALSE),\"\")","v":""}]
[null,null,null,{"$f":"IFERROR(VLOOKUP(C128,PriceList!A:C,3,FALSE),\"\")","v":""}]
[null,null,null,{"$f":"IFERROR(VLOOKUP(C129,PriceList!A:C,3,FALSE),\"\")","v":""}]
[null,null,null,{"$f":"IFERROR(VLOOKUP(C130,PriceList!A:C,3,FALSE),\"\")","v":""}]
[null,null,null,{"$f":"IFERROR(VLOOKUP(C131,PriceList!A:C,3,FALSE),\"\")","v":""}]
[null,null,null,{"$f":"IFERROR(VLOOKUP(C132,PriceList!A:C,3,FALSE),\"\")","v":""}]
[null,null,null,{"$f":"IFERROR(VLOOKUP(C133,PriceList!A:C,3,FALSE),\"\")","v":""}]
[null,null,null,{"$f":"IFERROR(VLOOKUP(C134,PriceList!A:C,3,FALSE),\"\")","v":""}]
[null,null,null,{"$f":"IFERROR(VLOOKUP(C135,PriceList!A:C,3,FALSE),\"\")","v":""}]
[null,null,null,{"$f":"IFERROR(VLOOKUP(C136,PriceList!A:C,3,FALSE),\"\")","v":""}]
[null,null,null,{"$f":"IFERROR(VLOOKUP(C137,PriceList!A:C,3,FALSE),\"\")","v":""}]
[null,null,null,{"$f":"IFERROR(VLOOKUP(C138,PriceList!A:C,3,FALSE),\"\")","v":""}]
[null,null,null,{"$f":"IFERROR(VLOOKUP(C139,PriceList!A:C,3,FALSE),\"\")","v":""}]
[null,null,null,{"$f":"IFERROR(VLOOKUP(C140,PriceList!A:C,3,FALSE),\"\")","v":""}]
[null,null,null,{"$f":"IFERROR(VLOOKUP(C141,PriceList!A:C,3,FALSE),\"\")","v":""}]
[null,null,null,{"$f":"IFERROR(VLOOKUP(C142,PriceList!A:C,3,FALSE),\"\")","v":""}]
[null,null,null,{"$f":"IFERROR(VLOOKUP(C143,PriceList!A:C,3,FALSE),\"\")","v":""}]
[null,null,null,{"$f":"IFERROR(VLOOKUP(C144,PriceList!A:C,3,FALSE),\"\")","v":""}]
[null,null,null,{"$f":"IFERROR(VLOOKUP(C145,PriceList!A:C,3,FALSE),\"\")","v":""}]
[null,null,null,{"$f":"IFERROR(VLOOKUP(C146,PriceList!A:C,3,FALSE),\"\")","v":""}]
[null,null,null,{"$f":"IFERROR(VLOOKUP(C147,PriceList!A:C,3,FALSE),\"\")","v":""}]
[null,null,null,{"$f":"IFERROR(VLOOKUP(C148,PriceList!A:C,3,FALSE),\"\")","v":""}]
[null,null,null,{"$f":"IFERROR(VLOOKUP(C149,PriceList!A:C,3,FALSE),\"\")","v":""}]
[null,null,null,{"$f":"IFERROR(VLOOKUP(C150,PriceList!A:C,3,FALSE),\"\")","v":""}]
[null,null,null,{"$f":"IFERROR(VLOOKUP(C151,PriceList!A:C,3,FALSE),\"\")","v":""}]
[null,null,null,{"$f":"IFERROR(VLOOKUP(C152,PriceList!A:C,3,FALSE),\"\")","v":""}]
[null,null,null,{"$f":"IFERROR(VLOOKUP(C153,PriceList!A:C,3,FALSE),\"\")","v":""}]
[null,null,null,{"$f":"IFERROR(VLOOKUP(C154,PriceList!A:C,3,FALSE),\"\")","v":""}]
[null,null,null,{"$f":"IFERROR(VLOOKUP(C155,PriceList!A:C,3,FALSE),\"\")","v":""}]
[null,null,null,{"$f":"IFERROR(VLOOKUP(C156,PriceList!A:C,3,FALSE),\"\")","v":""}]
[null,null,null,{"$f":"IFERROR(VLOOKUP(C157,PriceList!A:C,3,FALSE),\"\")","v":""}]
[null,null,null,{"$f":"IFERROR(VLOOKUP(C158,PriceList!A:C,3,FALSE),\"\")","v":""}]
[null,null,null,{"$f":"IFERROR(VLOOKUP(C159,PriceList!A:C,3,FALSE),\"\")","v":""}]
[null,null,null,{"$f":"IFERROR(VLOOKUP(C160,PriceList!A:C,3,FALSE),\"\")","v":""}]
[null,null,null,{"$f":"IFERROR(VLOOKUP(C161,PriceList!A:C,3,FALSE),\"\")","v":""}]
[null,null,null,{"$f":"IFERROR(VLOOKUP(C162,PriceList!A:C,3,FALSE),\"\")","v":""}]
[null,null,null,{"$f":"IFERROR(VLOOKUP(C163,PriceList!A:C,3,FALSE),\"\")","v":""}]
[null,null,null,{"$f":"IFERROR(VLOOKUP(C164,PriceList!A:C,3,FALSE),\"\")","v":""}]
[null,null,null,{"$f":"IFERROR(VLOOKUP(C165,PriceList!A:C,3,FALSE),\"\")","v":""}]
[null,null,null,{"$f":"IFERROR(VLOOKUP(C166,PriceList!A:C,3,FALSE),\"\")","v":""}]
[null,null,null,{"$f":"IFERROR(VLOOKUP(C167,PriceList!A:C,3,FALSE),\"\")","v":""}]
[null,null,null,{"$f":"IFERROR(VLOOKUP(C168,PriceList!A:C,3,FALSE),\"\")","v":""}]
[null,null,null,{"$f":"IFERROR(VLOOKUP(C169,PriceList!A:C,3,FALSE),\"\")","v":""}]
[null,null,null,{"$f":"IFERROR(VLOOKUP(C170,PriceList!A:C,3,FALSE),\"\")","v":""}]
[null,null,null,{"$f":"IFERROR(VLOOKUP(C171,PriceList!A:C,3,FALSE),\"\")","v":""}]
[null,null,null,{"$f":"IFERROR(VLOOKUP(C172,PriceList!A:C,3,FALSE),\"\")","v":""}]
[null,null,null,{"$f":"IFERROR(VLOOKUP(C173,PriceList!A:C,3,FALSE),\"\")","v":""}]
[null,null,null,{"$f":"IFERROR(VLOOKUP(C174,PriceList!A:C,3,FALSE),\"\")","v":""}]
[null,null,null,{"$f":"IFERROR(VLOOKUP(C175,PriceList!A:C,3,FALSE),\"\")","v":""}]
[null,null,null,{"$f":"IFERROR(VLOOKUP(C176,PriceList!A:C,3,FALSE),\"\")","v":""}]
[null,null,null,{"$f":"IFERROR(VLOOKUP(C177,PriceList!A:C,3,FALSE),\"\")","v":""}]
[null,null,null,{"$f":"IFERROR(VLOOKUP(C178,PriceList!A:C,3,FALSE),\"\")","v":""}]
[null,null,null,{"$f":"IFERROR(VLOOKUP(C179,PriceList!A:C,3,FALSE),\"\")","v":""}]
[null,null,null,{"$f":"IFERROR(VLOOKUP(C180,PriceList!A:C,3,FALSE),\"\")","v":""}]
[null,null,null,{"$f":"IFERROR(VLOOKUP(C181,PriceList!A:C,3,FALSE),\"\")","v":""}]
[null,null,null,{"$f":"IFERROR(VLOOKUP(C182,PriceList!A:C,3,FALSE),\"\")","v":""}]
[null,null,null,{"$f":"IFERROR(VLOOKUP(C183,PriceList!A:C,3,FALSE),\"\")","v":""}]
[null,null,null,{"$f":"IFERROR(VLOOKUP(C184,PriceList!A:C,3,FALSE),\"\")","v":""}]
[null,null,null,{"$f":"IFERROR(VLOOKUP(C185,PriceList!A:C,3,FALSE),\"\")","v":""}]
[null,null,null,{"$f":"IFERROR(VLOOKUP(C186,PriceList!A:C,3,FALSE),\"\")","v":""}]
[null,null,null,{"$f":"IFERROR(VLOOKUP(C187,PriceList!A:C,3,FALSE),\"\")","v":""}]
[null,null,null,{"$f":"IFERROR(VLOOKUP(C188,PriceList!A:C,3,FALSE),\"\")","v":""}]
[null,null,null,{"$f":"IFERROR(VLOOKUP(C189,PriceList!A:C,3,FALSE),\"\")","v":""}]
[null,null,null,{"$f":"IFERROR(VLOOKUP(C190,PriceList!A:C,3,FALSE),\"\")","v":""}]
[null,null,null,{"$f":"IFERROR(VLOOKUP(C191,PriceList!A:C,3,FALSE),\"\")","v":""}]
[null,null,null,{"$f":"IFERROR(VLOOKUP(C192,PriceList!A:C,3,FALSE),\"\")","v":""}]
[null,null,null,{"$f":"IFERROR(VLOOKUP(C193,PriceList!A:C,3,FALSE),\"\")","v":""}]
[null,null,null,{"$f":"IFERROR(VLOOKUP(C194,PriceList!A:C,3,FALSE),\"\")","v":""}]
[null,null,null,{"$f":"IFERROR(VLOOKUP(C195,PriceList!A:C,3,FALSE),\"\")","v":""}]
[null,null,null,{"$f":"IFERROR(VLOOKUP(C196,PriceList!A:C,3,FALSE),\"\")","v":""}]
[null,null,null,{"$f":"IFERROR(VLOOKUP(C197,PriceList!A:C,3,FALSE),\"\")","v":""}]
[null,null,null,{"$f":"IFERROR(VLOOKUP(C198,PriceList!A:C,3,FALSE),\"\")","v":""}]
[null,null,null,{"$f":"IFERROR(VLOOKUP(C199,PriceList!A:C,3,FALSE),\"\")","v":""}]
[null,null,null,{"$f":"IFERROR(VLOOKUP(C200,PriceList!A:C,3,FALSE),\"\")","v":""}]
[null,null,null,{"$f":"IFERROR(VLOOKUP(C201,PriceList!A:C,3,FALSE),\"\")","v":""}]
[null,null,null,{"$f":"IFERROR(VLOOKUP(C202,PriceList!A:C,3,FALSE),\"\")","v":""}]
[null,null,null,{"$f":"IFERROR(VLOOKUP(C203,PriceList!A:C,3,FALSE),\"\")","v":""}]
[null,null,null,{"$f":"IFERROR(VLOOKUP(C204,PriceList!A:C,3,FALSE),\"\")","v":""}]
[null,null,null,{"$f":"IFERROR(VLOOKUP(C205,PriceList!A:C,3,FALSE),\"\")","v":""}]
[null,null,null,{"$f":"IFERROR(VLOOKUP(C206,PriceList!A:C,3,FALSE),\"\")","v":""}]
[null,null,null,{"$f":"IFERROR(VLOOKUP(C207,PriceList!A:C,3,FALSE),\"\")","v":""}]
[null,null,null,{"$f":"IFERROR(VLOOKUP(C208,PriceList!A:C,3,FALSE),\"\")","v":""}]
[null,null,null,{"$f":"IFERROR(VLOOKUP(C209,PriceList!A:C,3,FALSE),\"\")","v":""}]
[null,null,null,{"$f":"IFERROR(VLOOKUP(C210,PriceList!A:C,3,FALSE),\"\")","v":""}]
[null,null,null,{"$f":"IFERROR(VLOOKUP(C211,PriceList!A:C,3,FALSE),\"\")","v":""}]
[null,null,null,{"$f":"IFERROR(VLOOKUP(C212,PriceList!A:C,3,FALSE),\"\")","v":""}]
[null,null,null,{"$f":"IFERROR(VLOOKUP(C213,PriceList!A:C,3,FALSE),\"\")","v":""}]
[null,null,null,{"$f":"IFERROR(VLOOKUP(C214,PriceList!A:C,3,FALSE),\"\")","v":""}]
[null,null,null,{"$f":"IFERROR(VLOOKUP(C215,PriceList!A:C,3,FALSE),\"\")","v":""}]
[null,null,null,{"$f":"IFERROR(VLOOKUP(C216,PriceList!A:C,3,FALSE),\"\")","v":""}]
[null,null,null,{"$f":"IFERROR(VLOOKUP(C217,PriceList!A:C,3,FALSE),\"\")","v":""}]
[null,null,null,{"$f":"IFERROR(VLOOKUP(C218,PriceList!A:C,3,FALSE),\"\")","v":""}]
[null,null,null,{"$f":"IFERROR(VLOOKUP(C219,PriceList!A:C,3,FALSE),\"\")","v":""}]
[null,null,null,{"$f":"IFERROR(VLOOKUP(C220,PriceList!A:C,3,FALSE),\"\")","v":""}]
[null,null,null,{"$f":"IFERROR(VLOOKUP(C221,PriceList!A:C,3,FALSE),\"\")","v":""}]
[null,null,null,{"$f":"IFERROR(VLOOKUP(C222,PriceList!A:C,3,FALSE),\"\")","v":""}]
[null,null,null,{"$f":"IFERROR(VLOOKUP(C223,PriceList!A:C,3,FALSE),\"\")","v":""}]
[null,null,null,{"$f":"IFERROR(VLOOKUP(C224,PriceList!A:C,3,FALSE),\"\")","v":""}]
[null,null,null,{"$f":"IFERROR(VLOOKUP(C225,PriceList!A:C,3,FALSE),\"\")","v":""}]
[null,null,null,{"$f":"IFERROR(VLOOKUP(C226,PriceList!A:C,3,FALSE),\"\")","v":""}]
[null,null,null,{"$f":"IFERROR(VLOOKUP(C227,PriceList!A:C,3,FALSE),\"\")","v":""}]
[null,null,null,{"$f":"IFERROR(VLOOKUP(C228,PriceList!A:C,3,FALSE),\"\")","v":""}]
[null,null,null,{"$f":"IFERROR(VLOOKUP(C229,PriceList!A:C,3,FALSE),\"\")","v":""}]
[null,null,null,{"$f":"IFERROR(VLOOKUP(C230,PriceList!A:C,3,FALSE),\"\")","v":""}]
[null,null,null,{"$f":"IFERROR(VLOOKUP(C231,PriceList!A:C,3,FALSE),\"\")","v":""}]
[null,null,null,{"$f":"IFERROR(VLOOKUP(C232,PriceList!A:C,3,FALSE),\"\")","v":""}]
[null,null,null,{"$f":"IFERROR(VLOOKUP(C233,PriceList!A:C,3,FALSE),\"\")","v":""}]
[null,null,null,{"$f":"IFERROR(VLOOKUP(C234,PriceList!A:C,3,FALSE),\"\")","v":""}]
[null,null,null,{"$f":"IFERROR(VLOOKUP(C235,PriceList!A:C,3,FALSE),\"\")","v":""}]
[null,null,null,{"$f":"IFERROR(VLOOKUP(C236,PriceList!A:C,3,FALSE),\"\")","v":""}]
[null,null,null,{"$f":"IFERROR(VLOOKUP(C237,PriceList!A:C,3,FALSE),\"\")","v":""}]
[null,null,null,{"$f":"IFERROR(VLOOKUP(C238,PriceList!A:C,3,FALSE),\"\")","v":""}]
[null,null,null,{"$f":"IFERROR(VLOOKUP(C239,PriceList!A:C,3,FALSE),\"\")","v":""}]
[null,null,null,{"$f":"IFERROR(VLOOKUP(C240,PriceList!A:C,3,FALSE),\"\")","v":""}]
[null,null,null,{"$f":"IFERROR(VLOOKUP(C241,PriceList!A:C,3,FALSE),\"\")","v":""}]
[null,null,null,{"$f":"IFERROR(VLOOKUP(C242,PriceList!A:C,3,FALSE),\"\")","v":""}]
[null,null,null,{"$f":"IFERROR(VLOOKUP(C243,PriceList!A:C,3,FALSE),\"\")","v":""}]
[null,null,null,{"$f":"IFERROR(VLOOKUP(C244,PriceList!A:C,3,FALSE),\"\")","v":""}]
[null,null,null,{"$f":"IFERROR(VLOOKUP(C245,PriceList!A:C,3,FALSE),\"\")","v":""}]
[null,null,null,{"$f":"IFERROR(VLOOKUP(C246,PriceList!A:C,3,FALSE),\"\")","v":""}]
[null,null,null,{"$f":"IFERROR(VLOOKUP(C247,PriceList!A:C,3,FALSE),\"\")","v":""}]
[null,null,null,{"$f":"IFERROR(VLOOKUP(C248,PriceList!A:C,3,FALSE),\"\")","v":""}]
[null,null,null,{"$f":"IFERROR(VLOOKUP(C249,PriceList!A:C,3,FALSE),\"\")","v":""}]
[null,null,null,{"$f":"IFERROR(VLOOKUP(C250,PriceList!A:C,3,FALSE),\"\")","v":""}]
[null,null,null,{"$f":"IFERROR(VLOOKUP(C251,PriceList!A:C,3,FALSE),\"\")","v":""}]
[null,null,null,{"$f":"IFERROR(VLOOKUP(C252,PriceList!A:C,3,FALSE),\"\")","v":""}]
[null,null,null,{"$f":"IFERROR(VLOOKUP(C253,PriceList!A:C,3,FALSE),\"\")","v":""}]
[null,null,null,{"$f":"IFERROR(VLOOKUP(C254,PriceList!A:C,3,FALSE),\"\")","v":""}]
[null,null,null,{"$f":"IFERROR(VLOOKUP(C255,PriceList!A:C,3,FALSE),\"\")","v":""}]
[null,null,null,{"$f":"IFERROR(VLOOKUP(C256,PriceList!A:C,3,FALSE),\"\")","v":""}]
[null,null,null,{"$f":"IFERROR(VLOOKUP(C257,PriceList!A:C,3,FALSE),\"\")","v":""}]
[null,null,null,{"$f":"IFERROR(VLOOKUP(C258,PriceList!A:C,3,FALSE),\"\")","v":""}]
[null,null,null,{"$f":"IFERROR(VLOOKUP(C259,PriceList!A:C,3,FALSE),\"\")","v":""}]
[null,null,null,{"$f":"IFERROR(VLOOKUP(C260,PriceList!A:C,3,FALSE),\"\")","v":""}]
[null,null,null,{"$f":"IFERROR(VLOOKUP(C261,PriceList!A:C,3,FALSE),\"\")","v":""}]
[null,null,null,{"$f":"IFERROR(VLOOKUP(C262,PriceList!A:C,3,FALSE),\"\")","v":""}]
[null,null,null,{"$f":"IFERROR(VLOOKUP(C263,PriceList!A:C,3,FALSE),\"\")","v":""}]
[null,null,null,{"$f":"IFERROR(VLOOKUP(C264,PriceList!A:C,3,FALSE),\"\")","v":""}]
[null,null,null,{"$f":"IFERROR(VLOOKUP(C265,PriceList!A:C,3,FALSE),\"\")","v":""}]
[null,null,null,{"$f":"IFERROR(VLOOKUP(C266,PriceList!A:C,3,FALSE),\"\")","v":""}]
[null,null,null,{"$f":"IFERROR(VLOOKUP(C267,PriceList!A:C,3,FALSE),\"\")","v":""}]
[null,null,null,{"$f":"IFERROR(VLOOKUP(C268,PriceList!A:C,3,FALSE),\"\")","v":""}]
[null,null,null,{"$f":"IFERROR(VLOOKUP(C269,PriceList!A:C,3,FALSE),\"\")","v":""}]
[null,null,null,{"$f":"IFERROR(VLOOKUP(C270,PriceList!A:C,3,FALSE),\"\")","v":""}]
[null,null,null,{"$f":"IFERROR(VLOOKUP(C271,PriceList!A:C,3,FALSE),\"\")","v":""}]
[null,null,null,{"$f":"IFERROR(VLOOKUP(C272,PriceList!A:C,3,FALSE),\"\")","v":""}]
[null,null,null,{"$f":"IFERROR(VLOOKUP(C273,PriceList!A:C,3,FALSE),\"\")","v":""}]
[null,null,null,{"$f":"IFERROR(VLOOKUP(C274,PriceList!A:C,3,FALSE),\"\")","v":""}]
[null,null,null,{"$f":"IFERROR(VLOOKUP(C275,PriceList!A:C,3,FALSE),\"\")","v":""}]
[null,null,null,{"$f":"IFERROR(VLOOKUP(C276,PriceList!A:C,3,FALSE),\"\")","v":""}]
[null,null,null,{"$f":"IFERROR(VLOOKUP(C277,PriceList!A:C,3,FALSE),\"\")","v":""}]
[null,null,null,{"$f":"IFERROR(VLOOKUP(C278,PriceList!A:C,3,FALSE),\"\")","v":""}]
[null,null,null,{"$f":"IFERROR(VLOOKUP(C279,PriceList!A:C,3,FALSE),\"\")","v":""}]
[null,null,null,{"$f":"IFERROR(VLOOKUP(C280,PriceList!A:C,3,FALSE),\"\")","v":""}]
[null,null,null,{"$f":"IFERROR(VLOOKUP(C281,PriceList!A:C,3,FALSE),\"\")","v":""}]
[null,null,null,{"$f":"IFERROR(VLOOKUP(C282,PriceList!A:C,3,FALSE),\"\")","v":""}]
[null,null,null,{"$f":"IFERROR(VLOOKUP(C283,PriceList!A:C,3,FALSE),\"\")","v":""}]
[null,null,null,{"$f":"IFERROR(VLOOKUP(C284,PriceList!A:C,3,FALSE),\"\")","v":""}]
[null,null,null,{"$f":"IFERROR(VLOOKUP(C285,PriceList!A:C,3,FALSE),\"\")","v":""}]
[null,null,null,{"$f":"IFERROR(VLOOKUP(C286,PriceList!A:C,3,FALSE),\"\")","v":""}]
[null,null,null,{"$f":"IFERROR(VLOOKUP(C287,PriceList!A:C,3,FALSE),\"\")","v":""}]
[null,null,null,{"$f":"IFERROR(VLOOKUP(C288,PriceList!A:C,3,FALSE),\"\")","v":""}]
[null,null,null,{"$f":"IFERROR(VLOOKUP(C289,PriceList!A:C,3,FALSE),\"\")","v":""}]
[null,null,null,{"$f":"IFERROR(VLOOKUP(C290,PriceList!A:C,3,FALSE),\"\")","v":""}]
[null,null,null,{"$f":"IFERROR(VLOOKUP(C291,PriceList!A:C,3,FALSE),\"\")","v":""}]
[null,null,null,{"$f":"IFERROR(VLOOKUP(C292,PriceList!A:C,3,FALSE),\"\")","v":""}]
[null,null,null,{"$f":"IFERROR(VLOOKUP(C293,PriceList!A:C,3,FALSE),\"\")","v":""}]
[null,null,null,{"$f":"IFERROR(VLOOKUP(C294,PriceList!A:C,3,FALSE),\"\")","v":""}]
[null,null,null,{"$f":"IFERROR(VLOOKUP(C295,PriceList!A:C,3,FALSE),\"\")","v":""}]
[null,null,null,{"$f":"IFERROR(VLOOKUP(C296,PriceList!A:C,3,FALSE),\"\")","v":""}]
[null,null,null,{"$f":"IFERROR(VLOOKUP(C297,PriceList!A:C,3,FALSE),\"\")","v":""}]
[null,null,null,{"$f":"IFERROR(VLOOKUP(C298,PriceList!A:C,3,FALSE),\"\")","v":""}]
[null,null,null,{"$f":"IFERROR(VLOOKUP(C299,PriceList!A:C,3,FALSE),\"\")","v":""}]
[null,null,null,{"$f":"IFERROR(VLOOKUP(C300,PriceList!A:C,3,FALSE),\"\")","v":""}]
[null,null,null,{"$f":"IFERROR(VLOOKUP(C301,PriceList!A:C,3,FALSE),\"\")","v":""}]
[null,null,null,{"$f":"IFERROR(VLOOKUP(C302,PriceList!A:C,3,FALSE),\"\")","v":""}]
[null,null,null,{"$f":"IFERROR(VLOOKUP(C303,PriceList!A:C,3,FALSE),\"\")","v":""}]
[null,null,null,{"$f":"IFERROR(VLOOKUP(C304,PriceList!A:C,3,FALSE),\"\")","v":""}]
[null,null,null,{"$f":"IFERROR(VLOOKUP(C305,PriceList!A:C,3,FALSE),\"\")","v":""}]
[null,null,null,{"$f":"IFERROR(VLOOKUP(C306,PriceList!A:C,3,FALSE),\"\")","v":""}]
[null,null,null,{"$f":"IFERROR(VLOOKUP(C307,PriceList!A:C,3,FALSE),\"\")","v":""}]
[null,null,null,{"$f":"IFERROR(VLOOKUP(C308,PriceList!A:C,3,FALSE),\"\")","v":""}]
[null,null,null,{"$f":"IFERROR(VLOOKUP(C309,PriceList!A:C,3,FALSE),\"\")","v":""}]
[null,null,null,{"$f":"IFERROR(VLOOKUP(C310,PriceList!A:C,3,FALSE),\"\")","v":""}]
[null,null,null,{"$f":"IFERROR(VLOOKUP(C311,PriceList!A:C,3,FALSE),\"\")","v":""}]
[null,null,null,{"$f":"IFERROR(VLOOKUP(C312,PriceList!A:C,3,FALSE),\"\")","v":""}]
[null,null,null,{"$f":"IFERROR(VLOOKUP(C313,PriceList!A:C,3,FALSE),\"\")","v":""}]
[null,null,null,{"$f":"IFERROR(VLOOKUP(C314,PriceList!A:C,3,FALSE),\"\")","v":""}]
[null,null,null,{"$f":"IFERROR(VLOOKUP(C315,PriceList!A:C,3,FALSE),\"\")","v":""}]
[null,null,null,{"$f":"IFERROR(VLOOKUP(C316,PriceList!A:C,3,FALSE),\"\")","v":""}]
[null,null,null,{"$f":"IFERROR(VLOOKUP(C317,PriceList!A:C,3,FALSE),\"\")","v":""}]
[null,null,null,{"$f":"IFERROR(VLOOKUP(C318,PriceList!A:C,3,FALSE),\"\")","v":""}]
[null,null,null,{"$f":"IFERROR(VLOOKUP(C319,PriceList!A:C,3,FALSE),\"\")","v":""}]
[null,null,null,{"$f":"IFERROR(VLOOKUP(C320,PriceList!A:C,3,FALSE),\"\")","v":""}]
[null,null,null,{"$f":"IFERROR(VLOOKUP(C321,PriceList!A:C,3,FALSE),\"\")","v":""}]
[null,null,null,{"$f":"IFERROR(VLOOKUP(C322,PriceList!A:C,3,FALSE),\"\")","v":""}]
[null,null,null,{"$f":"IFERROR(VLOOKUP(C323,PriceList!A:C,3,FALSE),\"\")","v":""}]
[null,null,null,{"$f":"IFERROR(VLOOKUP(C324,PriceList!A:C,3,FALSE),\"\")","v":""}]
[null,null,null,{"$f":"IFERROR(VLOOKUP(C325,PriceList!A:C,3,FALSE),\"\")","v":""}]
[null,null,null,{"$f":"IFERROR(VLOOKUP(C326,PriceList!A:C,3,FALSE),\"\")","v":""}]
[null,null,null,{"$f":"IFERROR(VLOOKUP(C327,PriceList!A:C,3,FALSE),\"\")","v":""}]
[null,null,null,{"$f":"IFERROR(VLOOKUP(C328,PriceList!A:C,3,FALSE),\"\")","v":""}]
[null,null,null,{"$f":"IFERROR(VLOOKUP(C329,PriceList!A:C,3,FALSE),\"\")","v":""}]
[null,null,null,{"$f":"IFERROR(VLOOKUP(C330,PriceList!A:C,3,FALSE),\"\")","v":""}]
[null,null,null,{"$f":"IFERROR(VLOOKUP(C331,PriceList!A:C,3,FALSE),\"\")","v":""}]
[null,null,null,{"$f":"IFERROR(VLOOKUP(C332,PriceList!A:C,3,FALSE),\"\")","v":""}]
[null,null,null,{"$f":"IFERROR(VLOOKUP(C333,PriceList!A:C,3,FALSE),\"\")","v":""}]
[null,null,null,{"$f":"IFERROR(VLOOKUP(C334,PriceList!A:C,3,FALSE),\"\")","v":""}]
[null,null,null,{"$f":"IFERROR(VLOOKUP(C335,PriceList!A:C,3,FALSE),\"\")","v":""}]
[null,null,null,{"$f":"IFERROR(VLOOKUP(C336,PriceList!A:C,3,FALSE),\"\")","v":""}]
[null,null,null,{"$f":"IFERROR(VLOOKUP(C337,PriceList!A:C,3,FALSE),\"\")","v":""}]
[null,null,null,{"$f":"IFERROR(VLOOKUP(C338,PriceList!A:C,3,FALSE),\"\")","v":""}]
[null,null,null,{"$f":"IFERROR(VLOOKUP(C339,PriceList!A:C,3,FALSE),\"\")","v":""}]
[null,null,null,{"$f":"IFERROR(VLOOKUP(C340,PriceList!A:C,3,FALSE),\"\")","v":""}]
[null,null,null,{"$f":"IFERROR(VLOOKUP(C341,PriceList!A:C,3,FALSE),\"\")","v":""}]
[null,null,null,{"$f":"IFERROR(VLOOKUP(C342,PriceList!A:C,3,FALSE),\"\")","v":""}]
[null,null,null,{"$f":"IFERROR(VLOOKUP(C343,PriceList!A:C,3,FALSE),\"\")","v":""}]
[null,null,null,{"$f":"IFERROR(VLOOKUP(C344,PriceList!A:C,3,FALSE),\"\")","v":""}]
[null,null,null,{"$f":"IFERROR(VLOOKUP(C345,PriceList!A:C,3,FALSE),\"\")","v":""}]
[null,null,null,{"$f":"IFERROR(VLOOKUP(C346,PriceList!A:C,3,FALSE),\"\")","v":""}]
[null,null,null,{"$f":"IFERROR(VLOOKUP(C347,PriceList!A:C,3,FALSE),\"\")","v":""}]
[null,null,null,{"$f":"IFERROR(VLOOKUP(C348,PriceList!A:C,3,FALSE),\"\")","v":""}]
[null,null,null,{"$f":"IFERROR(VLOOKUP(C349,PriceList!A:C,3,FALSE),\"\")","v":""}]
[null,null,null,{"$f":"IFERROR(VLOOKUP(C350,PriceList!A:C,3,FALSE),\"\")","v":""}]
[null,null,null,{"$f":"IFERROR(VLOOKUP(C351,PriceList!A:C,3,FALSE),\"\")","v":""}]
[null,null,null,{"$f":"IFERROR(VLOOKUP(C352,PriceList!A:C,3,FALSE),\"\")","v":""}]
[null,null,null,{"$f":"IFERROR(VLOOKUP(C353,PriceList!A:C,3,FALSE),\"\")","v":""}]
[null,null,null,{"$f":"IFERROR(VLOOKUP(C354,PriceList!A:C,3,FALSE),\"\")","v":""}]
[null,null,null,{"$f":"IFERROR(VLOOKUP(C355,PriceList!A:C,3,FALSE),\"\")","v":""}]
[null,null,null,{"$f":"IFERROR(VLOOKUP(C356,PriceList!A:C,3,FALSE),\"\")","v":""}]
[null,null,null,{"$f":"IFERROR(VLOOKUP(C357,PriceList!A:C,3,FALSE),\"\")","v":""}]
[null,null,null,{"$f":"IFERROR(VLOOKUP(C358,PriceList!A:C,3,FALSE),\"\")","v":""}]
[null,null,null,{"$f":"IFERROR(VLOOKUP(C359,PriceList!A:C,3,FALSE),\"\")","v":""}]
[null,null,null,{"$f":"IFERROR(VLOOKUP(C360,PriceList!A:C,3,FALSE),\"\")","v":""}]
[null,null,null,{"$f":"IFERROR(VLOOKUP(C361,PriceList!A:C,3,FALSE),\"\")","v":""}]
[null,null,null,{"$f":"IFERROR(VLOOKUP(C362,PriceList!A:C,3,FALSE),\"\")","v":""}]
[null,null,null,{"$f":"IFERROR(VLOOKUP(C363,PriceList!A:C,3,FALSE),\"\")","v":""}]
[null,null,null,{"$f":"IFERROR(VLOOKUP(C364,PriceList!A:C,3,FALSE),\"\")","v":""}]
[null,null,null,{"$f":"IFERROR(VLOOKUP(C365,PriceList!A:C,3,FALSE),\"\")","v":""}]
[null,null,null,{"$f":"IFERROR(VLOOKUP(C366,PriceList!A:C,3,FALSE),\"\")","v":""}]
[null,null,null,{"$f":"IFERROR(VLOOKUP(C367,PriceList!A:C,3,FALSE),\"\")","v":""}]
[null,null,null,{"$f":"IFERROR(VLOOKUP(C368,PriceList!A:C,3,FALSE),\"\")","v":""}]
[null,null,null,{"$f":"IFERROR(VLOOKUP(C369,PriceList!A:C,3,FALSE),\"\")","v":""}]
[null,null,null,{"$f":"IFERROR(VLOOKUP(C370,PriceList!A:C,3,FALSE),\"\")","v":""}]
[null,null,null,{"$f":"IFERROR(VLOOKUP(C371,PriceList!A:C,3,FALSE),\"\")","v":""}]
[null,null,null,{"$f":"IFERROR(VLOOKUP(C372,PriceList!A:C,3,FALSE),\"\")","v":""}]
[null,null,null,{"$f":"IFERROR(VLOOKUP(C373,PriceList!A:C,3,FALSE),\"\")","v":""}]
[null,null,null,{"$f":"IFERROR(VLOOKUP(C374,PriceList!A:C,3,FALSE),\"\")","v":""}]
[null,null,null,{"$f":"IFERROR(VLOOKUP(C375,PriceList!A:C,3,FALSE),\"\")","v":""}]
[null,null,null,{"$f":"IFERROR(VLOOKUP(C376,PriceList!A:C,3,FALSE),\"\")","v":""}]
[null,null,null,{"$f":"IFERROR(VLOOKUP(C377,PriceList!A:C,3,FALSE),\"\")","v":""}]
[null,null,null,{"$f":"IFERROR(VLOOKUP(C378,PriceList!A:C,3,FALSE),\"\")","v":""}]
[null,null,null,{"$f":"IFERROR(VLOOKUP(C379,PriceList!A:C,3,FALSE),\"\")","v":""}]
[null,null,null,{"$f":"IFERROR(VLOOKUP(C380,PriceList!A:C,3,FALSE),\"\")","v":""}]
[null,null,null,{"$f":"IFERROR(VLOOKUP(C381,PriceList!A:C,3,FALSE),\"\")","v":""}]
[null,null,null,{"$f":"IFERROR(VLOOKUP(C382,PriceList!A:C,3,FALSE),\"\")","v":""}]
[null,null,null,{"$f":"IFERROR(VLOOKUP(C383,PriceList!A:C,3,FALSE),\"\")","v":""}]
[null,null,null,{"$f":"IFERROR(VLOOKUP(C384,PriceList!A:C,3,FALSE),\"\")","v":""}]
[null,null,null,{"$f":"IFERROR(VLOOKUP(C385,PriceList!A:C,3,FALSE),\"\")","v":""}]
[null,null,null,{"$f":"IFERROR(VLOOKUP(C386,PriceList!A:C,3,FALSE),\"\")","v":""}]
[null,null,null,{"$f":"IFERROR(VLOOKUP(C387,PriceList!A:C,3,FALSE),\"\")","v":""}]
[null,null,null,{"$f":"IFERROR(VLOOKUP(C388,PriceList!A:C,3,FALSE),\"\")","v":""}]
[null,null,null,{"$f":"IFERROR(VLOOKUP(C389,PriceList!A:C,3,FALSE),\"\")","v":""}]
[null,null,null,{"$f":"IFERROR(VLOOKUP(C390,PriceList!A:C,3,FALSE),\"\")","v":""}]
[null,null,null,{"$f":"IFERROR(VLOOKUP(C391,PriceList!A:C,3,FALSE),\"\")","v":""}]
[null,null,null,{"$f":"IFERROR(VLOOKUP(C392,PriceList!A:C,3,FALSE),\"\")","v":""}]
[null,null,null,{"$f":"IFERROR(VLOOKUP(C393,PriceList!A:C,3,FALSE),\"\")","v":""}]
[null,null,null,{"$f":"IFERROR(VLOOKUP(C394,PriceList!A:C,3,FALSE),\"\")","v":""}]
[null,null,null,{"$f":"IFERROR(VLOOKUP(C395,PriceList!A:C,3,FALSE),\"\")","v":""}]
[null,null,null,{"$f":"IFERROR(VLOOKUP(C396,PriceList!A:C,3,FALSE),\"\")","v":""}]
[null,null,null,{"$f":"IFERROR(VLOOKUP(C397,PriceList!A:C,3,FALSE),\"\")","v":""}]
[null,null,null,{"$f":"IFERROR(VLOOKUP(C398,PriceList!A:C,3,FALSE),\"\")","v":""}]
[null,null,null,{"$f":"IFERROR(VLOOKUP(C399,PriceList!A:C,3,FALSE),\"\")","v":""}]
[null,null,null,{"$f":"IFERROR(VLOOKUP(C400,PriceList!A:C,3,FALSE),\"\")","v":""}]
[null,null,null,{"$f":"IFERROR(VLOOKUP(C401,PriceList!A:C,3,FALSE),\"\")","v":""}]
[null,null,null,{"$f":"IFERROR(VLOOKUP(C402,PriceList!A:C,3,FALSE),\"\")","v":""}]
[null,null,null,{"$f":"IFERROR(VLOOKUP(C403,PriceList!A:C,3,FALSE),\"\")","v":""}]
[null,null,null,{"$f":"IFERROR(VLOOKUP(C404,PriceList!A:C,3,FALSE),\"\")","v":""}]
[null,null,null,{"$f":"IFERROR(VLOOKUP(C405,PriceList!A:C,3,FALSE),\"\")","v":""}]
[null,null,null,{"$f":"IFERROR(VLOOKUP(C406,PriceList!A:C,3,FALSE),\"\")","v":""}]
[null,null,null,{"$f":"IFERROR(VLOOKUP(C407,PriceList!A:C,3,FALSE),\"\")","v":""}]
[null,null,null,{"$f":"IFERROR(VLOOKUP(C408,PriceList!A:C,3,FALSE),\"\")","v":""}]
[null,null,null,{"$f":"IFERROR(VLOOKUP(C409,PriceList!A:C,3,FALSE),\"\")","v":""}]
[null,null,null,{"$f":"IFERROR(VLOOKUP(C410,PriceList!A:C,3,FALSE),\"\")","v":""}]
[null,null,null,{"$f":"IFERROR(VLOOKUP(C411,PriceList!A:C,3,FALSE),\"\")","v":""}]
[null,null,null,{"$f":"IFERROR(VLOOKUP(C412,PriceList!A:C,3,FALSE),\"\")","v":""}]
[null,null,null,{"$f":"IFERROR(VLOOKUP(C413,PriceList!A:C,3,FALSE),\"\")","v":""}]
[null,null,null,{"$f":"IFERROR(VLOOKUP(C414,PriceList!A:C,3,FALSE),\"\")","v":""}]
[null,null,null,{"$f":"IFERROR(VLOOKUP(C415,PriceList!A:C,3,FALSE),\"\")","v":""}]
[null,null,null,{"$f":"IFERROR(VLOOKUP(C416,PriceList!A:C,3,FALSE),\"\")","v":""}]
[null,null,null,{"$f":"IFERROR(VLOOKUP(C417,PriceList!A:C,3,FALSE),\"\")","v":""}]
[null,null,null,{"$f":"IFERROR(VLOOKUP(C418,PriceList!A:C,3,FALSE),\"\")","v":""}]
[null,null,null,{"$f":"IFERROR(VLOOKUP(C419,PriceList!A:C,3,FALSE),\"\")","v":""}]
[null,null,null,{"$f":"IFERROR(VLOOKUP(C420,PriceList!A:C,3,FALSE),\"\")","v":""}]
[null,null,null,{"$f":"IFERROR(VLOOKUP(C421,PriceList!A:C,3,FALSE),\"\")","v":""}]
[null,null,null,{"$f":"IFERROR(VLOOKUP(C422,PriceList!A:C,3,FALSE),\"\")","v":""}]
[null,null,null,{"$f":"IFERROR(VLOOKUP(C423,PriceList!A:C,3,FALSE),\"\")","v":""}]
[null,null,null,{"$f":"IFERROR(VLOOKUP(C424,PriceList!A:C,3,FALSE),\"\")","v":""}]
[null,null,null,{"$f":"IFERROR(VLOOKUP(C425,PriceList!A:C,3,FALSE),\"\")","v":""}]
[null,null,null,{"$f":"IFERROR(VLOOKUP(C426,PriceList!A:C,3,FALSE),\"\")","v":""}]
[null,null,null,{"$f":"IFERROR(VLOOKUP(C427,PriceList!A:C,3,FALSE),\"\")","v":""}]
[null,null,null,{"$f":"IFERROR(VLOOKUP(C428,PriceList!A:C,3,FALSE),\"\")","v":""}]
[null,null,null,{"$f":"IFERROR(VLOOKUP(C429,PriceList!A:C,3,FALSE),\"\")","v":""}]
[null,null,null,{"$f":"IFERROR(VLOOKUP(C430,PriceList!A:C,3,FALSE),\"\")","v":""}]
[null,null,null,{"$f":"IFERROR(VLOOKUP(C431,PriceList!A:C,3,FALSE),\"\")","v":""}]
[null,null,null,{"$f":"IFERROR(VLOOKUP(C432,PriceList!A:C,3,FALSE),\"\")","v":""}]
[null,null,null,{"$f":"IFERROR(VLOOKUP(C433,PriceList!A:C,3,FALSE),\"\")","v":""}]
[null,null,null,{"$f":"IFERROR(VLOOKUP(C434,PriceList!A:C,3,FALSE),\"\")","v":""}]
[null,null,null,{"$f":"IFERROR(VLOOKUP(C435,PriceList!A:C,3,FALSE),\"\")","v":""}]
[null,null,null,{"$f":"IFERROR(VLOOKUP(C436,PriceList!A:C,3,FALSE),\"\")","v":""}]
[null,null,null,{"$f":"IFERROR(VLOOKUP(C437,PriceList!A:C,3,FALSE),\"\")","v":""}]
[null,null,null,{"$f":"IFERROR(VLOOKUP(C438,PriceList!A:C,3,FALSE),\"\")","v":""}]
[null,null,null,{"$f":"IFERROR(VLOOKUP(C439,PriceList!A:C,3,FALSE),\"\")","v":""}]
[null,null,null,{"$f":"IFERROR(VLOOKUP(C440,PriceList!A:C,3,FALSE),\"\")","v":""}]
[null,null,null,{"$f":"IFERROR(VLOOKUP(C441,PriceList!A:C,3,FALSE),\"\")","v":""}]
[null,null,null,{"$f":"IFERROR(VLOOKUP(C442,PriceList!A:C,3,FALSE),\"\")","v":""}]
[null,null,null,{"$f":"IFERROR(VLOOKUP(C443,PriceList!A:C,3,FALSE),\"\")","v":""}]
[null,null,null,{"$f":"IFERROR(VLOOKUP(C444,PriceList!A:C,3,FALSE),\"\")","v":""}]
[null,null,null,{"$f":"IFERROR(VLOOKUP(C445,PriceList!A:C,3,FALSE),\"\")","v":""}]
[null,null,null,{"$f":"IFERROR(VLOOKUP(C446,PriceList!A:C,3,FALSE),\"\")","v":""}]
[null,null,null,{"$f":"IFERROR(VLOOKUP(C447,PriceList!A:C,3,FALSE),\"\")","v":""}]
[null,null,null,{"$f":"IFERROR(VLOOKUP(C448,PriceList!A:C,3,FALSE),\"\")","v":""}]
[null,null,null,{"$f":"IFERROR(VLOOKUP(C449,PriceList!A:C,3,FALSE),\"\")","v":""}]
[null,null,null,{"$f":"IFERROR(VLOOKUP(C450,PriceList!A:C,3,FALSE),\"\")","v":""}]
[null,null,null,{"$f":"IFERROR(VLOOKUP(C451,PriceList!A:C,3,FALSE),\"\")","v":""}]
[null,null,null,{"$f":"IFERROR(VLOOKUP(C452,PriceList!A:C,3,FALSE),\"\")","v":""}]
[null,null,null,{"$f":"IFERROR(VLOOKUP(C453,PriceList!A:C,3,FALSE),\"\")","v":""}]
[null,null,null,{"$f":"IFERROR(VLOOKUP(C454,PriceList!A:C,3,FALSE),\"\")","v":""}]
[null,null,null,{"$f":"IFERROR(VLOOKUP(C455,PriceList!A:C,3,FALSE),\"\")","v":""}]
[null,null,null,{"$f":"IFERROR(VLOOKUP(C456,PriceList!A:C,3,FALSE),\"\")","v":""}]
[null,null,null,{"$f":"IFERROR(VLOOKUP(C457,PriceList!A:C,3,FALSE),\"\")","v":""}]
[null,null,null,{"$f":"IFERROR(VLOOKUP(C458,PriceList!A:C,3,FALSE),\"\")","v":""}]
[null,null,null,{"$f":"IFERROR(VLOOKUP(C459,PriceList!A:C,3,FALSE),\"\")","v":""}]
[null,null,null,{"$f":"IFERROR(VLOOKUP(C460,PriceList!A:C,3,FALSE),\"\")","v":""}]
[null,null,null,{"$f":"IFERROR(VLOOKUP(C461,PriceList!A:C,3,FALSE),\"\")","v":""}]
[null,null,null,{"$f":"IFERROR(VLOOKUP(C462,PriceList!A:C,3,FALSE),\"\")","v":""}]
[null,null,null,{"$f":"IFERROR(VLOOKUP(C463,PriceList!A:C,3,FALSE),\"\")","v":""}]
[null,null,null,{"$f":"IFERROR(VLOOKUP(C464,PriceList!A:C,3,FALSE),\"\")","v":""}]
[null,null,null,{"$f":"IFERROR(VLOOKUP(C465,PriceList!A:C,3,FALSE),\"\")","v":""}]
[null,null,null,{"$f":"IFERROR(VLOOKUP(C466,PriceList!A:C,3,FALSE),\"\")","v":""}]
[null,null,null,{"$f":"IFERROR(VLOOKUP(C467,PriceList!A:C,3,FALSE),\"\")","v":""}]
[null,null,null,{"$f":"IFERROR(VLOOKUP(C468,PriceList!A:C,3,FALSE),\"\")","v":""}]
[null,null,null,{"$f":"IFERROR(VLOOKUP(C469,PriceList!A:C,3,FALSE),\"\")","v":""}]
[null,null,null,{"$f":"IFERROR(VLOOKUP(C470,PriceList!A:C,3,FALSE),\"\")","v":""}]
[null,null,null,{"$f":"IFERROR(VLOOKUP(C471,PriceList!A:C,3,FALSE),\"\")","v":""}]
[null,null,null,{"$f":"IFERROR(VLOOKUP(C472,PriceList!A:C,3,FALSE),\"\")","v":""}]
[null,null,null,{"$f":"IFERROR(VLOOKUP(C473,PriceList!A:C,3,FALSE),\"\")","v":""}]
[null,null,null,{"$f":"IFERROR(VLOOKUP(C474,PriceList!A:C,3,FALSE),\"\")","v":""}]
[null,null,null,{"$f":"IFERROR(VLOOKUP(C475,PriceList!A:C,3,FALSE),\"\")","v":""}]
[null,null,null,{"$f":"IFERROR(VLOOKUP(C476,PriceList!A:C,3,FALSE),\"\")","v":""}]
[null,null,null,{"$f":"IFERROR(VLOOKUP(C477,PriceList!A:C,3,FALSE),\"\")","v":""}]
[null,null,null,{"$f":"IFERROR(VLOOKUP(C478,PriceList!A:C,3,FALSE),\"\")","v":""}]
[null,null,null,{"$f":"IFERROR(VLOOKUP(C479,PriceList!A:C,3,FALSE),\"\")","v":""}]
[null,null,null,{"$f":"IFERROR(VLOOKUP(C480,PriceList!A:C,3,FALSE),\"\")","v":""}]
[null,null,null,{"$f":"IFERROR(VLOOKUP(C481,PriceList!A:C,3,FALSE),\"\")","v":""}]
[null,null,null,{"$f":"IFERROR(VLOOKUP(C482,PriceList!A:C,3,FALSE),\"\")","v":""}]
[null,null,null,{"$f":"IFERROR(VLOOKUP(C483,PriceList!A:C,3,FALSE),\"\")","v":""}]
[null,null,null,{"$f":"IFERROR(VLOOKUP(C484,PriceList!A:C,3,FALSE),\"\")","v":""}]
[null,null,null,{"$f":"IFERROR(VLOOKUP(C485,PriceList!A:C,3,FALSE),\"\")","v":""}]
[null,null,null,{"$f":"IFERROR(VLOOKUP(C486,PriceList!A:C,3,FALSE),\"\")","v":""}]
[null,null,null,{"$f":"IFERROR(VLOOKUP(C487,PriceList!A:C,3,FALSE),\"\")","v":""}]
[null,null,null,{"$f":"IFERROR(VLOOKUP(C488,PriceList!A:C,3,FALSE),\"\")","v":""}]
[null,null,null,{"$f":"IFERROR(VLOOKUP(C489,PriceList!A:C,3,FALSE),\"\")","v":""}]
[null,null,null,{"$f":"IFERROR(VLOOKUP(C490,PriceList!A:C,3,FALSE),\"\")","v":""}]
[null,null,null,{"$f":"IFERROR(VLOOKUP(C491,PriceList!A:C,3,FALSE),\"\")","v":""}]
[null,null,null,{"$f":"IFERROR(VLOOKUP(C492,PriceList!A:C,3,FALSE),\"\")","v":""}]
[null,null,null,{"$f":"IFERROR(VLOOKUP(C493,PriceList!A:C,3,FALSE),\"\")","v":""}]
[null,null,null,{"$f":"IFERROR(VLOOKUP(C494,PriceList!A:C,3,FALSE),\"\")","v":""}]
[null,null,null,{"$f":"IFERROR(VLOOKUP(C495,PriceList!A:C,3,FALSE),\"\")","v":""}]
[null,null,null,{"$f":"IFERROR(VLOOKUP(C496,PriceList!A:C,3,FALSE),\"\")","v":""}]
[null,null,null,{"$f":"IFERROR(VLOOKUP(C497,PriceList!A:C,3,FALSE),\"\")","v":""}]
[null,null,null,{"$f":"IFERROR(VLOOKUP(C498,PriceList!A:C,3,FALSE),\"\")","v":""}]
[null,null,null,{"$f":"IFERROR(VLOOKUP(C499,PriceList!A:C,3,FALSE),\"\")","v":""}]
[null,null,null,{"$f":"IFERROR(VLOOKUP(C500,PriceList!A:C,3,FALSE),\"\")","v":""}]
[null,null,null,{"$f":"IFERROR(VLOOKUP(C501,PriceList!A:C,3,FALSE),\"\")","v":""}]
[null,null,null,{"$f":"IFERROR(VLOOKUP(C502,PriceList!A:C,3,FALSE),\"\")","v":""}]
[null,null,null,{"$f":"IFERROR(VLOOKUP(C503,PriceList!A:C,3,FALSE),\"\")","v":""}]
[null,null,null,{"$f":"IFERROR(VLOOKUP(C504,PriceList!A:C,3,FALSE),\"\")","v":""}]
[null,null,null,{"$f":"IFERROR(VLOOKUP(C505,PriceList!A:C,3,FALSE),\"\")","v":""}]
[null,null,null,{"$f":"IFERROR(VLOOKUP(C506,PriceList!A:C,3,FALSE),\"\")","v":""}]
[null,null,null,{"$f":"IFERROR(VLOOKUP(C507,PriceList!A:C,3,FALSE),\"\")","v":""}]
[null,null,null,{"$f":"IFERROR(VLOOKUP(C508,PriceList!A:C,3,FALSE),\"\")","v":""}]
[null,null,null,{"$f":"IFERROR(VLOOKUP(C509,PriceList!A:C,3,FALSE),\"\")","v":""}]
[null,null,null,{"$f":"IFERROR(VLOOKUP(C510,PriceList!A:C,3,FALSE),\"\")","v":""}]
[null,null,null,{"$f":"IFERROR(VLOOKUP(C511,PriceList!A:C,3,FALSE),\"\")","v":""}]
[null,null,null,{"$f":"IFERROR(VLOOKUP(C512,PriceList!A:C,3,FALSE),\"\")","v":""}]
[null,null,null,{"$f":"IFERROR(VLOOKUP(C513,PriceList!A:C,3,FALSE),\"\")","v":""}]
[null,null,null,{"$f":"IFERROR(VLOOKUP(C514,PriceList!A:C,3,FALSE),\"\")","v":""}]
[null,null,null,{"$f":"IFERROR(VLOOKUP(C515,PriceList!A:C,3,FALSE),\"\")","v":""}]
[null,null,null,{"$f":"IFERROR(VLOOKUP(C516,PriceList!A:C,3,FALSE),\"\")","v":""}]
[null,null,null,{"$f":"IFERROR(VLOOKUP(C517,PriceList!A:C,3,FALSE),\"\")","v":""}]
[null,null,null,{"$f":"IFERROR(VLOOKUP(C518,PriceList!A:C,3,FALSE),\"\")","v":""}]
[null,null,null,{"$f":"IFERROR(VLOOKUP(C519,PriceList!A:C,3,FALSE),\"\")","v":""}]
[null,null,null,{"$f":"IFERROR(VLOOKUP(C520,PriceList!A:C,3,FALSE),\"\")","v":""}]
[null,null,null,{"$f":"IFERROR(VLOOKUP(C521,PriceList!A:C,3,FALSE),\"\")","v":""}]
[null,null,null,{"$f":"IFERROR(VLOOKUP(C522,PriceList!A:C,3,FALSE),\"\")","v":""}]
[null,null,null,{"$f":"IFERROR(VLOOKUP(C523,PriceList!A:C,3,FALSE),\"\")","v":""}]
[null,null,null,{"$f":"IFERROR(VLOOKUP(C524,PriceList!A:C,3,FALSE),\"\")","v":""}]
[null,null,null,{"$f":"IFERROR(VLOOKUP(C525,PriceList!A:C,3,FALSE),\"\")","v":""}]
[null,null,null,{"$f":"IFERROR(VLOOKUP(C526,PriceList!A:C,3,FALSE),\"\")","v":""}]
[null,null,null,{"$f":"IFERROR(VLOOKUP(C527,PriceList!A:C,3,FALSE),\"\")","v":""}]
[null,null,null,{"$f":"IFERROR(VLOOKUP(C528,PriceList!A:C,3,FALSE),\"\")","v":""}]
[null,null,null,{"$f":"IFERROR(VLOOKUP(C529,PriceList!A:C,3,FALSE),\"\")","v":""}]
[null,null,null,{"$f":"IFERROR(VLOOKUP(C530,PriceList!A:C,3,FALSE),\"\")","v":""}]
[null,null,null,{"$f":"IFERROR(VLOOKUP(C531,PriceList!A:C,3,FALSE),\"\")","v":""}]
[null,null,null,{"$f":"IFERROR(VLOOKUP(C532,PriceList!A:C,3,FALSE),\"\")","v":""}]
[null,null,null,{"$f":"IFERROR(VLOOKUP(C533,PriceList!A:C,3,FALSE),\"\")","v":""}]
[null,null,null,{"$f":"IFERROR(VLOOKUP(C534,PriceList!A:C,3,FALSE),\"\")","v":""}]
[null,null,null,{"$f":"IFERROR(VLOOKUP(C535,PriceList!A:C,3,FALSE),\"\")","v":""}]
[null,null,null,{"$f":"IFERROR(VLOOKUP(C536,PriceList!A:C,3,FALSE),\"\")","v":""}]
[null,null,null,{"$f":"IFERROR(VLOOKUP(C537,PriceList!A:C,3,FALSE),\"\")","v":""}]
[null,null,null,{"$f":"IFERROR(VLOOKUP(C538,PriceList!A:C,3,FALSE),\"\")","v":""}]
[null,null,null,{"$f":"IFERROR(VLOOKUP(C539,PriceList!A:C,3,FALSE),\"\")","v":""}]
[null,null,null,{"$f":"IFERROR(VLOOKUP(C540,PriceList!A:C,3,FALSE),\"\")","v":""}]
[null,null,null,{"$f":"IFERROR(VLOOKUP(C541,PriceList!A:C,3,FALSE),\"\")","v":""}]
[null,null,null,{"$f":"IFERROR(VLOOKUP(C542,PriceList!A:C,3,FALSE),\"\")","v":""}]
[null,null,null,{"$f":"IFERROR(VLOOKUP(C543,PriceList!A:C,3,FALSE),\"\")","v":""}]
[null,null,null,{"$f":"IFERROR(VLOOKUP(C544,PriceList!A:C,3,FALSE),\"\")","v":""}]
[null,null,null,{"$f":"IFERROR(VLOOKUP(C545,PriceList!A:C,3,FALSE),\"\")","v":""}]
[null,null,null,{"$f":"IFERROR(VLOOKUP(C546,PriceList!A:C,3,FALSE),\"\")","v":""}]
[null,null,null,{"$f":"IFERROR(VLOOKUP(C547,PriceList!A:C,3,FALSE),\"\")","v":""}]
[null,null,null,{"$f":"IFERROR(VLOOKUP(C548,PriceList!A:C,3,FALSE),\"\")","v":""}]
[null,null,null,{"$f":"IFERROR(VLOOKUP(C549,PriceList!A:C,3,FALSE),\"\")","v":""}]
[null,null,null,{"$f":"IFERROR(VLOOKUP(C550,PriceList!A:C,3,FALSE),\"\")","v":""}]
[null,null,null,{"$f":"IFERROR(VLOOKUP(C551,PriceList!A:C,3,FALSE),\"\")","v":""}]
[null,null,null,{"$f":"IFERROR(VLOOKUP(C552,PriceList!A:C,3,FALSE),\"\")","v":""}]
[null,null,null,{"$f":"IFERROR(VLOOKUP(C553,PriceList!A:C,3,FALSE),\"\")","v":""}]
[null,null,null,{"$f":"IFERROR(VLOOKUP(C554,PriceList!A:C,3,FALSE),\"\")","v":""}]
[null,null,null,{"$f":"IFERROR(VLOOKUP(C555,PriceList!A:C,3,FALSE),\"\")","v":""}]
[null,null,null,{"$f":"IFERROR(VLOOKUP(C556,PriceList!A:C,3,FALSE),\"\")","v":""}]
[null,null,null,{"$f":"IFERROR(VLOOKUP(C557,PriceList!A:C,3,FALSE),\"\")","v":""}]
[null,null,null,{"$f":"IFERROR(VLOOKUP(C558,PriceList!A:C,3,FALSE),\"\")","v":""}]
[null,null,null,{"$f":"IFERROR(VLOOKUP(C559,PriceList!A:C,3,FALSE),\"\")","v":""}]
[null,null,null,{"$f":"IFERROR(VLOOKUP(C560,PriceList!A:C,3,FALSE),\"\")","v":""}]
[null,null,null,{"$f":"IFERROR(VLOOKUP(C561,PriceList!A:C,3,FALSE),\"\")","v":""}]
[null,null,null,{"$f":"IFERROR(VLOOKUP(C562,PriceList!A:C,3,FALSE),\"\")","v":""}]
[null,null,null,{"$f":"IFERROR(VLOOKUP(C563,PriceList!A:C,3,FALSE),\"\")","v":""}]
[null,null,null,{"$f":"IFERROR(VLOOKUP(C564,PriceList!A:C,3,FALSE),\"\")","v":""}]
[null,null,null,{"$f":"IFERROR(VLOOKUP(C565,PriceList!A:C,3,FALSE),\"\")","v":""}]
[null,null,null,{"$f":"IFERROR(VLOOKUP(C566,PriceList!A:C,3,FALSE),\"\")","v":""}]
[null,null,null,{"$f":"IFERROR(VLOOKUP(C567,PriceList!A:C,3,FALSE),\"\")","v":""}]
[null,null,null,{"$f":"IFERROR(VLOOKUP(C568,PriceList!A:C,3,FALSE),\"\")","v":""}]
[null,null,null,{"$f":"IFERROR(VLOOKUP(C569,PriceList!A:C,3,FALSE),\"\")","v":""}]
[null,null,null,{"$f":"IFERROR(VLOOKUP(C570,PriceList!A:C,3,FALSE),\"\")","v":""}]
[null,null,null,{"$f":"IFERROR(VLOOKUP(C571,PriceList!A:C,3,FALSE),\"\")","v":""}]
[null,null,null,{"$f":"IFERROR(VLOOKUP(C572,PriceList!A:C,3,FALSE),\"\")","v":""}]
[null,null,null,{"$f":"IFERROR(VLOOKUP(C573,PriceList!A:C,3,FALSE),\"\")","v":""}]
[null,null,null,{"$f":"IFERROR(VLOOKUP(C574,PriceList!A:C,3,FALSE),\"\")","v":""}]
[null,null,null,{"$f":"IFERROR(VLOOKUP(C575,PriceList!A:C,3,FALSE),\"\")","v":""}]
[null,null,null,{"$f":"IFERROR(VLOOKUP(C576,PriceList!A:C,3,FALSE),\"\")","v":""}]
[null,null,null,{"$f":"IFERROR(VLOOKUP(C577,PriceList!A:C,3,FALSE),\"\")","v":""}]
[null,null,null,{"$f":"IFERROR(VLOOKUP(C578,PriceList!A:C,3,FALSE),\"\")","v":""}]
[null,null,null,{"$f":"IFERROR(VLOOKUP(C579,PriceList!A:C,3,FALSE),\"\")","v":""}]
[null,null,null,{"$f":"IFERROR(VLOOKUP(C580,PriceList!A:C,3,FALSE),\"\")","v":""}]
[null,null,null,{"$f":"IFERROR(VLOOKUP(C581,PriceList!A:C,3,FALSE),\"\")","v":""}]
[null,null,null,{"$f":"IFERROR(VLOOKUP(C582,PriceList!A:C,3,FALSE),\"\")","v":""}]
[null,null,null,{"$f":"IFERROR(VLOOKUP(C583,PriceList!A:C,3,FALSE),\"\")","v":""}]
[null,null,null,{"$f":"IFERROR(VLOOKUP(C584,PriceList!A:C,3,FALSE),\"\")","v":""}]
[null,null,null,{"$f":"IFERROR(VLOOKUP(C585,PriceList!A:C,3,FALSE),\"\")","v":""}]
[null,null,null,{"$f":"IFERROR(VLOOKUP(C586,PriceList!A:C,3,FALSE),\"\")","v":""}]
[null,null,null,{"$f":"IFERROR(VLOOKUP(C587,PriceList!A:C,3,FALSE),\"\")","v":""}]
[null,null,null,{"$f":"IFERROR(VLOOKUP(C588,PriceList!A:C,3,FALSE),\"\")","v":""}]
[null,null,null,{"$f":"IFERROR(VLOOKUP(C589,PriceList!A:C,3,FALSE),\"\")","v":""}]
[null,null,null,{"$f":"IFERROR(VLOOKUP(C590,PriceList!A:C,3,FALSE),\"\")","v":""}]
[null,null,null,{"$f":"IFERROR(VLOOKUP(C591,PriceList!A:C,3,FALSE),\"\")","v":""}]
[null,null,null,{"$f":"IFERROR(VLOOKUP(C592,PriceList!A:C,3,FALSE),\"\")","v":""}]
[null,null,null,{"$f":"IFERROR(VLOOKUP(C593,PriceList!A:C,3,FALSE),\"\")","v":""}]
[null,null,null,{"$f":"IFERROR(VLOOKUP(C594,PriceList!A:C,3,FALSE),\"\")","v":""}]
[null,null,null,{"$f":"IFERROR(VLOOKUP(C595,PriceList!A:C,3,FALSE),\"\")","v":""}]
[null,null,null,{"$f":"IFERROR(VLOOKUP(C596,PriceList!A:C,3,FALSE),\"\")","v":""}]
[null,null,null,{"$f":"IFERROR(VLOOKUP(C597,PriceList!A:C,3,FALSE),\"\")","v":""}]
[null,null,null,{"$f":"IFERROR(VLOOKUP(C598,PriceList!A:C,3,FALSE),\"\")","v":""}]
[null,null,null,{"$f":"IFERROR(VLOOKUP(C599,PriceList!A:C,3,FALSE),\"\")","v":""}]
[null,null,null,{"$f":"IFERROR(VLOOKUP(C600,PriceList!A:C,3,FALSE),\"\")","v":""}]
[null,null,null,{"$f":"IFERROR(VLOOKUP(C601,PriceList!A:C,3,FALSE),\"\")","v":""}]
[null,null,null,{"$f":"IFERROR(VLOOKUP(C602,PriceList!A:C,3,FALSE),\"\")","v":""}]
[null,null,null,{"$f":"IFERROR(VLOOKUP(C603,PriceList!A:C,3,FALSE),\"\")","v":""}]
[null,null,null,{"$f":"IFERROR(VLOOKUP(C604,PriceList!A:C,3,FALSE),\"\")","v":""}]
[null,null,null,{"$f":"IFERROR(VLOOKUP(C605,PriceList!A:C,3,FALSE),\"\")","v":""}]
[null,null,null,{"$f":"IFERROR(VLOOKUP(C606,PriceList!A:C,3,FALSE),\"\")","v":""}]
[null,null,null,{"$f":"IFERROR(VLOOKUP(C607,PriceList!A:C,3,FALSE),\"\")","v":""}]
[null,null,null,{"$f":"IFERROR(VLOOKUP(C608,PriceList!A:C,3,FALSE),\"\")","v":""}]
[null,null,null,{"$f":"IFERROR(VLOOKUP(C609,PriceList!A:C,3,FALSE),\"\")","v":""}]
[null,null,null,{"$f":"IFERROR(VLOOKUP(C610,PriceList!A:C,3,FALSE),\"\")","v":""}]
[null,null,null,{"$f":"IFERROR(VLOOKUP(C611,PriceList!A:C,3,FALSE),\"\")","v":""}]
[null,null,null,{"$f":"IFERROR(VLOOKUP(C612,PriceList!A:C,3,FALSE),\"\")","v":""}]
[null,null,null,{"$f":"IFERROR(VLOOKUP(C613,PriceList!A:C,3,FALSE),\"\")","v":""}]
[null,null,null,{"$f":"IFERROR(VLOOKUP(C614,PriceList!A:C,3,FALSE),\"\")","v":""}]
[null,null,null,{"$f":"IFERROR(VLOOKUP(C615,PriceList!A:C,3,FALSE),\"\")","v":""}]
[null,null,null,{"$f":"IFERROR(VLOOKUP(C616,PriceList!A:C,3,FALSE),\"\")","v":""}]
[null,null,null,{"$f":"IFERROR(VLOOKUP(C617,PriceList!A:C,3,FALSE),\"\")","v":""}]
[null,null,null,{"$f":"IFERROR(VLOOKUP(C618,PriceList!A:C,3,FALSE),\"\")","v":""}]
[null,null,null,{"$f":"IFERROR(VLOOKUP(C619,PriceList!A:C,3,FALSE),\"\")","v":""}]
[null,null,null,{"$f":"IFERROR(VLOOKUP(C620,PriceList!A:C,3,FALSE),\"\")","v":""}]
[null,null,null,{"$f":"IFERROR(VLOOKUP(C621,PriceList!A:C,3,FALSE),\"\")","v":""}]
[null,null,null,{"$f":"IFERROR(VLOOKUP(C622,PriceList!A:C,3,FALSE),\"\")","v":""}]
[null,null,null,{"$f":"IFERROR(VLOOKUP(C623,PriceList!A:C,3,FALSE),\"\")","v":""}]
[null,null,null,{"$f":"IFERROR(VLOOKUP(C624,PriceList!A:C,3,FALSE),\"\")","v":""}]
[null,null,null,{"$f":"IFERROR(VLOOKUP(C625,PriceList!A:C,3,FALSE),\"\")","v":""}]
[null,null,null,{"$f":"IFERROR(VLOOKUP(C626,PriceList!A:C,3,FALSE),\"\")","v":""}]
[null,null,null,{"$f":"IFERROR(VLOOKUP(C627,PriceList!A:C,3,FALSE),\"\")","v":""}]
[null,null,null,{"$f":"IFERROR(VLOOKUP(C628,PriceList!A:C,3,FALSE),\"\")","v":""}]
[null,null,null,{"$f":"IFERROR(VLOOKUP(C629,PriceList!A:C,3,FALSE),\"\")","v":""}]
[null,null,null,{"$f":"IFERROR(VLOOKUP(C630,PriceList!A:C,3,FALSE),\"\")","v":""}]
[null,null,null,{"$f":"IFERROR(VLOOKUP(C631,PriceList!A:C,3,FALSE),\"\")","v":""}]
[null,null,null,{"$f":"IFERROR(VLOOKUP(C632,PriceList!A:C,3,FALSE),\"\")","v":""}]
[null,null,null,{"$f":"IFERROR(VLOOKUP(C633,PriceList!A:C,3,FALSE),\"\")","v":""}]
[null,null,null,{"$f":"IFERROR(VLOOKUP(C634,PriceList!A:C,3,FALSE),\"\")","v":""}]
[null,null,null,{"$f":"IFERROR(VLOOKUP(C635,PriceList!A:C,3,FALSE),\"\")","v":""}]
[null,null,null,{"$f":"IFERROR(VLOOKUP(C636,PriceList!A:C,3,FALSE),\"\")","v":""}]
[null,null,null,{"$f":"IFERROR(VLOOKUP(C637,PriceList!A:C,3,FALSE),\"\")","v":""}]
[null,null,null,{"$f":"IFERROR(VLOOKUP(C638,PriceList!A:C,3,FALSE),\"\")","v":""}]
[null,null,null,{"$f":"IFERROR(VLOOKUP(C639,PriceList!A:C,3,FALSE),\"\")","v":""}]
[null,null,null,{"$f":"IFERROR(VLOOKUP(C640,PriceList!A:C,3,FALSE),\"\")","v":""}]
[null,null,null,{"$f":"IFERROR(VLOOKUP(C641,PriceList!A:C,3,FALSE),\"\")","v":""}]
[null,null,null,{"$f":"IFERROR(VLOOKUP(C642,PriceList!A:C,3,FALSE),\"\")","v":""}]
[null,null,null,{"$f":"IFERROR(VLOOKUP(C643,PriceList!A:C,3,FALSE),\"\")","v":""}]
[null,null,null,{"$f":"IFERROR(VLOOKUP(C644,PriceList!A:C,3,FALSE),\"\")","v":""}]
[null,null,null,{"$f":"IFERROR(VLOOKUP(C645,PriceList!A:C,3,FALSE),\"\")","v":""}]
[null,null,null,{"$f":"IFERROR(VLOOKUP(C646,PriceList!A:C,3,FALSE),\"\")","v":""}]
[null,null,null,{"$f":"IFERROR(VLOOKUP(C647,PriceList!A:C,3,FALSE),\"\")","v":""}]
[null,null,null,{"$f":"IFERROR(VLOOKUP(C648,PriceList!A:C,3,FALSE),\"\")","v":""}]
[null,null,null,{"$f":"IFERROR(VLOOKUP(C649,PriceList!A:C,3,FALSE),\"\")","v":""}]
[null,null,null,{"$f":"IFERROR(VLOOKUP(C650,PriceList!A:C,3,FALSE),\"\")","v":""}]
[null,null,null,{"$f":"IFERROR(VLOOKUP(C651,PriceList!A:C,3,FALSE),\"\")","v":""}]
[null,null,null,{"$f":"IFERROR(VLOOKUP(C652,PriceList!A:C,3,FALSE),\"\")","v":""}]
[null,null,null,{"$f":"IFERROR(VLOOKUP(C653,PriceList!A:C,3,FALSE),\"\")","v":""}]
[null,null,null,{"$f":"IFERROR(VLOOKUP(C654,PriceList!A:C,3,FALSE),\"\")","v":""}]
[null,null,null,{"$f":"IFERROR(VLOOKUP(C655,PriceList!A:C,3,FALSE),\"\")","v":""}]
[null,null,null,{"$f":"IFERROR(VLOOKUP(C656,PriceList!A:C,3,FALSE),\"\")","v":""}]
[null,null,null,{"$f":"IFERROR(VLOOKUP(C657,PriceList!A:C,3,FALSE),\"\")","v":""}]
[null,null,null,{"$f":"IFERROR(VLOOKUP(C658,PriceList!A:C,3,FALSE),\"\")","v":""}]
[null,null,null,{"$f":"IFERROR(VLOOKUP(C659,PriceList!A:C,3,FALSE),\"\")","v":""}]
[null,null,null,{"$f":"IFERROR(VLOOKUP(C660,PriceList!A:C,3,FALSE),\"\")","v":""}]
[null,null,null,{"$f":"IFERROR(VLOOKUP(C661,PriceList!A:C,3,FALSE),\"\")","v":""}]
[null,null,null,{"$f":"IFERROR(VLOOKUP(C662,PriceList!A:C,3,FALSE),\"\")","v":""}]
[null,null,null,{"$f":"IFERROR(VLOOKUP(C663,PriceList!A:C,3,FALSE),\"\")","v":""}]
[null,null,null,{"$f":"IFERROR(VLOOKUP(C664,PriceList!A:C,3,FALSE),\"\")","v":""}]
[null,null,null,{"$f":"IFERROR(VLOOKUP(C665,PriceList!A:C,3,FALSE),\"\")","v":""}]
[null,null,null,{"$f":"IFERROR(VLOOKUP(C666,PriceList!A:C,3,FALSE),\"\")","v":""}]
[null,null,null,{"$f":"IFERROR(VLOOKUP(C667,PriceList!A:C,3,FALSE),\"\")","v":""}]
[null,null,null,{"$f":"IFERROR(VLOOKUP(C668,PriceList!A:C,3,FALSE),\"\")","v":""}]
[null,null,null,{"$f":"IFERROR(VLOOKUP(C669,PriceList!A:C,3,FALSE),\"\")","v":""}]
[null,null,null,{"$f":"IFERROR(VLOOKUP(C670,PriceList!A:C,3,FALSE),\"\")","v":""}]
[null,null,null,{"$f":"IFERROR(VLOOKUP(C671,PriceList!A:C,3,FALSE),\"\")","v":""}]
[null,null,null,{"$f":"IFERROR(VLOOKUP(C672,PriceList!A:C,3,FALSE),\"\")","v":""}]
[null,null,null,{"$f":"IFERROR(VLOOKUP(C673,PriceList!A:C,3,FALSE),\"\")","v":""}]
[null,null,null,{"$f":"IFERROR(VLOOKUP(C674,PriceList!A:C,3,FALSE),\"\")","v":""}]
[null,null,null,{"$f":"IFERROR(VLOOKUP(C675,PriceList!A:C,3,FALSE),\"\")","v":""}]
[null,null,null,{"$f":"IFERROR(VLOOKUP(C676,PriceList!A:C,3,FALSE),\"\")","v":""}]
[null,null,null,{"$f":"IFERROR(VLOOKUP(C677,PriceList!A:C,3,FALSE),\"\")","v":""}]
[null,null,null,{"$f":"IFERROR(VLOOKUP(C678,PriceList!A:C,3,FALSE),\"\")","v":""}]
[null,null,null,{"$f":"IFERROR(VLOOKUP(C679,PriceList!A:C,3,FALSE),\"\")","v":""}]
[null,null,null,{"$f":"IFERROR(VLOOKUP(C680,PriceList!A:C,3,FALSE),\"\")","v":""}]
[null,null,null,{"$f":"IFERROR(VLOOKUP(C681,PriceList!A:C,3,FALSE),\"\")","v":""}]
[null,null,null,{"$f":"IFERROR(VLOOKUP(C682,PriceList!A:C,3,FALSE),\"\")","v":""}]
[null,null,null,{"$f":"IFERROR(VLOOKUP(C683,PriceList!A:C,3,FALSE),\"\")","v":""}]
[null,null,null,{"$f":"IFERROR(VLOOKUP(C684,PriceList!A:C,3,FALSE),\"\")","v":""}]
[null,null,null,{"$f":"IFERROR(VLOOKUP(C685,PriceList!A:C,3,FALSE),\"\")","v":""}]
[null,null,null,{"$f":"IFERROR(VLOOKUP(C686,PriceList!A:C,3,FALSE),\"\")","v":""}]
[null,null,null,{"$f":"IFERROR(VLOOKUP(C687,PriceList!A:C,3,FALSE),\"\")","v":""}]
[null,null,null,{"$f":"IFERROR(VLOOKUP(C688,PriceList!A:C,3,FALSE),\"\")","v":""}]
[null,null,null,{"$f":"IFERROR(VLOOKUP(C689,PriceList!A:C,3,FALSE),\"\")","v":""}]
[null,null,null,{"$f":"IFERROR(VLOOKUP(C690,PriceList!A:C,3,FALSE),\"\")","v":""}]
[null,null,null,{"$f":"IFERROR(VLOOKUP(C691,PriceList!A:C,3,FALSE),\"\")","v":""}]
[null,null,null,{"$f":"IFERROR(VLOOKUP(C692,PriceList!A:C,3,FALSE),\"\")","v":""}]
[null,null,null,{"$f":"IFERROR(VLOOKUP(C693,PriceList!A:C,3,FALSE),\"\")","v":""}]
[null,null,null,{"$f":"IFERROR(VLOOKUP(C694,PriceList!A:C,3,FALSE),\"\")","v":""}]
[null,null,null,{"$f":"IFERROR(VLOOKUP(C695,PriceList!A:C,3,FALSE),\"\")","v":""}]
[null,null,null,{"$f":"IFERROR(VLOOKUP(C696,PriceList!A:C,3,FALSE),\"\")","v":""}]
[null,null,null,{"$f":"IFERROR(VLOOKUP(C697,PriceList!A:C,3,FALSE),\"\")","v":""}]
[null,null,null,{"$f":"IFERROR(VLOOKUP(C698,PriceList!A:C,3,FALSE),\"\")","v":""}]
[null,null,null,{"$f":"IFERROR(VLOOKUP(C699,PriceList!A:C,3,FALSE),\"\")","v":""}]
[null,null,null,{"$f":"IFERROR(VLOOKUP(C700,PriceList!A:C,3,FALSE),\"\")","v":""}]
[null,null,null,{"$f":"IFERROR(VLOOKUP(C701,PriceList!A:C,3,FALSE),\"\")","v":""}]
[null,null,null,{"$f":"IFERROR(VLOOKUP(C702,PriceList!A:C,3,FALSE),\"\")","v":""}]
[null,null,null,{"$f":"IFERROR(VLOOKUP(C703,PriceList!A:C,3,FALSE),\"\")","v":""}]
[null,null,null,{"$f":"IFERROR(VLOOKUP(C704,PriceList!A:C,3,FALSE),\"\")","v":""}]
[null,null,null,{"$f":"IFERROR(VLOOKUP(C705,PriceList!A:C,3,FALSE),\"\")","v":""}]
[null,null,null,{"$f":"IFERROR(VLOOKUP(C706,PriceList!A:C,3,FALSE),\"\")","v":""}]
[null,null,null,{"$f":"IFERROR(VLOOKUP(C707,PriceList!A:C,3,FALSE),\"\")","v":""}]
[null,null,null,{"$f":"IFERROR(VLOOKUP(C708,PriceList!A:C,3,FALSE),\"\")","v":""}]
[null,null,null,{"$f":"IFERROR(VLOOKUP(C709,PriceList!A:C,3,FALSE),\"\")","v":""}]
[null,null,null,{"$f":"IFERROR(VLOOKUP(C710,PriceList!A:C,3,FALSE),\"\")","v":""}]
[null,null,null,{"$f":"IFERROR(VLOOKUP(C711,PriceList!A:C,3,FALSE),\"\")","v":""}]
[null,null,null,{"$f":"IFERROR(VLOOKUP(C712,PriceList!A:C,3,FALSE),\"\")","v":""}]
[null,null,null,{"$f":"IFERROR(VLOOKUP(C713,PriceList!A:C,3,FALSE),\"\")","v":""}]
[null,null,null,{"$f":"IFERROR(VLOOKUP(C714,PriceList!A:C,3,FALSE),\"\")","v":""}]
[null,null,null,{"$f":"IFERROR(VLOOKUP(C715,PriceList!A:C,3,FALSE),\"\")","v":""}]
[null,null,null,{"$f":"IFERROR(VLOOKUP(C716,PriceList!A:C,3,FALSE),\"\")","v":""}]
[null,null,null,{"$f":"IFERROR(VLOOKUP(C717,PriceList!A:C,3,FALSE),\"\")","v":""}]
[null,null,null,{"$f":"IFERROR(VLOOKUP(C718,PriceList!A:C,3,FALSE),\"\")","v":""}]
[null,null,null,{"$f":"IFERROR(VLOOKUP(C719,PriceList!A:C,3,FALSE),\"\")","v":""}]
[null,null,null,{"$f":"IFERROR(VLOOKUP(C720,PriceList!A:C,3,FALSE),\"\")","v":""}]
[null,null,null,{"$f":"IFERROR(VLOOKUP(C721,PriceList!A:C,3,FALSE),\"\")","v":""}]
[null,null,null,{"$f":"IFERROR(VLOOKUP(C722,PriceList!A:C,3,FALSE),\"\")","v":""}]
[null,null,null,{"$f":"IFERROR(VLOOKUP(C723,PriceList!A:C,3,FALSE),\"\")","v":""}]
[null,null,null,{"$f":"IFERROR(VLOOKUP(C724,PriceList!A:C,3,FALSE),\"\")","v":""}]
[null,null,null,{"$f":"IFERROR(VLOOKUP(C725,PriceList!A:C,3,FALSE),\"\")","v":""}]
[null,null,null,{"$f":"IFERROR(VLOOKUP(C726,PriceList!A:C,3,FALSE),\"\")","v":""}]
[null,null,null,{"$f":"IFERROR(VLOOKUP(C727,PriceList!A:C,3,FALSE),\"\")","v":""}]
[null,null,null,{"$f":"IFERROR(VLOOKUP(C728,PriceList!A:C,3,FALSE),\"\")","v":""}]
[null,null,null,{"$f":"IFERROR(VLOOKUP(C729,PriceList!A:C,3,FALSE),\"\")","v":""}]
[null,null,null,{"$f":"IFERROR(VLOOKUP(C730,PriceList!A:C,3,FALSE),\"\")","v":""}]
[null,null,null,{"$f":"IFERROR(VLOOKUP(C731,PriceList!A:C,3,FALSE),\"\")","v":""}]
[null,null,null,{"$f":"IFERROR(VLOOKUP(C732,PriceList!A:C,3,FALSE),\"\")","v":""}]
[null,null,null,{"$f":"IFERROR(VLOOKUP(C733,PriceList!A:C,3,FALSE),\"\")","v":""}]
[null,null,null,{"$f":"IFERROR(VLOOKUP(C734,PriceList!A:C,3,FALSE),\"\")","v":""}]
[null,null,null,{"$f":"IFERROR(VLOOKUP(C735,PriceList!A:C,3,FALSE),\"\")","v":""}]
[null,null,null,{"$f":"IFERROR(VLOOKUP(C736,PriceList!A:C,3,FALSE),\"\")","v":""}]
[null,null,null,{"$f":"IFERROR(VLOOKUP(C737,PriceList!A:C,3,FALSE),\"\")","v":""}]
[null,null,null,{"$f":"IFERROR(VLOOKUP(C738,PriceList!A:C,3,FALSE),\"\")","v":""}]
[null,null,null,{"$f":"IFERROR(VLOOKUP(C739,PriceList!A:C,3,FALSE),\"\")","v":""}]
[null,null,null,{"$f":"IFERROR(VLOOKUP(C740,PriceList!A:C,3,FALSE),\"\")","v":""}]
[null,null,null,{"$f":"IFERROR(VLOOKUP(C741,PriceList!A:C,3,FALSE),\"\")","v":""}]
[null,null,null,{"$f":"IFERROR(VLOOKUP(C742,PriceList!A:C,3,FALSE),\"\")","v":""}]
[null,null,null,{"$f":"IFERROR(VLOOKUP(C743,PriceList!A:C,3,FALSE),\"\")","v":""}]
[null,null,null,{"$f":"IFERROR(VLOOKUP(C744,PriceList!A:C,3,FALSE),\"\")","v":""}]
[null,null,null,{"$f":"IFERROR(VLOOKUP(C745,PriceList!A:C,3,FALSE),\"\")","v":""}]
[null,null,null,{"$f":"IFERROR(VLOOKUP(C746,PriceList!A:C,3,FALSE),\"\")","v":""}]
[null,null,null,{"$f":"IFERROR(VLOOKUP(C747,PriceList!A:C,3,FALSE),\"\")","v":""}]
[null,null,null,{"$f":"IFERROR(VLOOKUP(C748,PriceList!A:C,3,FALSE),\"\")","v":""}]
[null,null,null,{"$f":"IFERROR(VLOOKUP(C749,PriceList!A:C,3,FALSE),\"\")","v":""}]
[null,null,null,{"$f":"IFERROR(VLOOKUP(C750,PriceList!A:C,3,FALSE),\"\")","v":""}]
[null,null,null,{"$f":"IFERROR(VLOOKUP(C751,PriceList!A:C,3,FALSE),\"\")","v":""}]
[null,null,null,{"$f":"IFERROR(VLOOKUP(C752,PriceList!A:C,3,FALSE),\"\")","v":""}]
[null,null,null,{"$f":"IFERROR(VLOOKUP(C753,PriceList!A:C,3,FALSE),\"\")","v":""}]
[null,null,null,{"$f":"IFERROR(VLOOKUP(C754,PriceList!A:C,3,FALSE),\"\")","v":""}]
[null,null,null,{"$f":"IFERROR(VLOOKUP(C755,PriceList!A:C,3,FALSE),\"\")","v":""}]
[null,null,null,{"$f":"IFERROR(VLOOKUP(C756,PriceList!A:C,3,FALSE),\"\")","v":""}]
[null,null,null,{"$f":"IFERROR(VLOOKUP(C757,PriceList!A:C,3,FALSE),\"\")","v":""}]
[null,null,null,{"$f":"IFERROR(VLOOKUP(C758,PriceList!A:C,3,FALSE),\"\")","v":""}]
[null,null,null,{"$f":"IFERROR(VLOOKUP(C759,PriceList!A:C,3,FALSE),\"\")","v":""}]
[null,null,null,{"$f":"IFERROR(VLOOKUP(C760,PriceList!A:C,3,FALSE),\"\")","v":""}]
[null,null,null,{"$f":"IFERROR(VLOOKUP(C761,PriceList!A:C,3,FALSE),\"\")","v":""}]
[null,null,null,{"$f":"IFERROR(VLOOKUP(C762,PriceList!A:C,3,FALSE),\"\")","v":""}]
[null,null,null,{"$f":"IFERROR(VLOOKUP(C763,PriceList!A:C,3,FALSE),\"\")","v":""}]
[null,null,null,{"$f":"IFERROR(VLOOKUP(C764,PriceList!A:C,3,FALSE),\"\")","v":""}]
[null,null,null,{"$f":"IFERROR(VLOOKUP(C765,PriceList!A:C,3,FALSE),\"\")","v":""}]
[null,null,null,{"$f":"IFERROR(VLOOKUP(C766,PriceList!A:C,3,FALSE),\"\")","v":""}]
[null,null,null,{"$f":"IFERROR(VLOOKUP(C767,PriceList!A:C,3,FALSE),\"\")","v":""}]
[null,null,null,{"$f":"IFERROR(VLOOKUP(C768,PriceList!A:C,3,FALSE),\"\")","v":""}]
[null,null,null,{"$f":"IFERROR(VLOOKUP(C769,PriceList!A:C,3,FALSE),\"\")","v":""}]
[null,null,null,{"$f":"IFERROR(VLOOKUP(C770,PriceList!A:C,3,FALSE),\"\")","v":""}]
[null,null,null,{"$f":"IFERROR(VLOOKUP(C771,PriceList!A:C,3,FALSE),\"\")","v":""}]
[null,null,null,{"$f":"IFERROR(VLOOKUP(C772,PriceList!A:C,3,FALSE),\"\")","v":""}]
[null,null,null,{"$f":"IFERROR(VLOOKUP(C773,PriceList!A:C,3,FALSE),\"\")","v":""}]
[null,null,null,{"$f":"IFERROR(VLOOKUP(C774,PriceList!A:C,3,FALSE),\"\")","v":""}]
[null,null,null,{"$f":"IFERROR(VLOOKUP(C775,PriceList!A:C,3,FALSE),\"\")","v":""}]
[null,null,null,{"$f":"IFERROR(VLOOKUP(C776,PriceList!A:C,3,FALSE),\"\")","v":""}]
[null,null,null,{"$f":"IFERROR(VLOOKUP(C777,PriceList!A:C,3,FALSE),\"\")","v":""}]
[null,null,null,{"$f":"IFERROR(VLOOKUP(C778,PriceList!A:C,3,FALSE),\"\")","v":""}]
[null,null,null,{"$f":"IFERROR(VLOOKUP(C779,PriceList!A:C,3,FALSE),\"\")","v":""}]
[null,null,null,{"$f":"IFERROR(VLOOKUP(C780,PriceList!A:C,3,FALSE),\"\")","v":""}]
[null,null,null,{"$f":"IFERROR(VLOOKUP(C781,PriceList!A:C,3,FALSE),\"\")","v":""}]
[null,null,null,{"$f":"IFERROR(VLOOKUP(C782,PriceList!A:C,3,FALSE),\"\")","v":""}]
[null,null,null,{"$f":"IFERROR(VLOOKUP(C783,PriceList!A:C,3,FALSE),\"\")","v":""}]
[null,null,null,{"$f":"IFERROR(VLOOKUP(C784,PriceList!A:C,3,FALSE),\"\")","v":""}]
[null,null,null,{"$f":"IFERROR(VLOOKUP(C785,PriceList!A:C,3,FALSE),\"\")","v":""}]
[null,null,null,{"$f":"IFERROR(VLOOKUP(C786,PriceList!A:C,3,FALSE),\"\")","v":""}]
[null,null,null,{"$f":"IFERROR(VLOOKUP(C787,PriceList!A:C,3,FALSE),\"\")","v":""}]
[null,null,null,{"$f":"IFERROR(VLOOKUP(C788,PriceList!A:C,3,FALSE),\"\")","v":""}]
[null,null,null,{"$f":"IFERROR(VLOOKUP(C789,PriceList!A:C,3,FALSE),\"\")","v":""}]
[null,null,null,{"$f":"IFERROR(VLOOKUP(C790,PriceList!A:C,3,FALSE),\"\")","v":""}]
[null,null,null,{"$f":"IFERROR(VLOOKUP(C791,PriceList!A:C,3,FALSE),\"\")","v":""}]
[null,null,null,{"$f":"IFERROR(VLOOKUP(C792,PriceList!A:C,3,FALSE),\"\")","v":""}]
[null,null,null,{"$f":"IFERROR(VLOOKUP(C793,PriceList!A:C,3,FALSE),\"\")","v":""}]
[null,null,null,{"$f":"IFERROR(VLOOKUP(C794,PriceList!A:C,3,FALSE),\"\")","v":""}]
[null,null,null,{"$f":"IFERROR(VLOOKUP(C795,PriceList!A:C,3,FALSE),\"\")","v":""}]
[null,null,null,{"$f":"IFERROR(VLOOKUP(C796,PriceList!A:C,3,FALSE),\"\")","v":""}]
[null,null,null,{"$f":"IFERROR(VLOOKUP(C797,PriceList!A:C,3,FALSE),\"\")","v":""}]
[null,null,null,{"$f":"IFERROR(VLOOKUP(C798,PriceList!A:C,3,FALSE),\"\")","v":""}]
[null,null,null,{"$f":"IFERROR(VLOOKUP(C799,PriceList!A:C,3,FALSE),\"\")","v":""}]
[null,null,null,{"$f":"IFERROR(VLOOKUP(C800,PriceList!A:C,3,FALSE),\"\")","v":""}]
[null,null,null,{"$f":"IFERROR(VLOOKUP(C801,PriceList!A:C,3,FALSE),\"\")","v":""}]
[null,null,null,{"$f":"IFERROR(VLOOKUP(C802,PriceList!A:C,3,FALSE),\"\")","v":""}]
[null,null,null,{"$f":"IFERROR(VLOOKUP(C803,PriceList!A:C,3,FALSE),\"\")","v":""}]
[null,null,null,{"$f":"IFERROR(VLOOKUP(C804,PriceList!A:C,3,FALSE),\"\")","v":""}]
[null,null,null,{"$f":"IFERROR(VLOOKUP(C805,PriceList!A:C,3,FALSE),\"\")","v":""}]
[null,null,null,{"$f":"IFERROR(VLOOKUP(C806,PriceList!A:C,3,FALSE),\"\")","v":""}]
[null,null,null,{"$f":"IFERROR(VLOOKUP(C807,PriceList!A:C,3,FALSE),\"\")","v":""}]
[null,null,null,{"$f":"IFERROR(VLOOKUP(C808,PriceList!A:C,3,FALSE),\"\")","v":""}]
[null,null,null,{"$f":"IFERROR(VLOOKUP(C809,PriceList!A:C,3,FALSE),\"\")","v":""}]
[null,null,null,{"$f":"IFERROR(VLOOKUP(C810,PriceList!A:C,3,FALSE),\"\")","v":""}]
[null,null,null,{"$f":"IFERROR(VLOOKUP(C811,PriceList!A:C,3,FALSE),\"\")","v":""}]
[null,null,null,{"$f":"IFERROR(VLOOKUP(C812,PriceList!A:C,3,FALSE),\"\")","v":""}]
[null,null,null,{"$f":"IFERROR(VLOOKUP(C813,PriceList!A:C,3,FALSE),\"\")","v":""}]
[null,null,null,{"$f":"IFERROR(VLOOKUP(C814,PriceList!A:C,3,FALSE),\"\")","v":""}]
[null,null,null,{"$f":"IFERROR(VLOOKUP(C815,PriceList!A:C,3,FALSE),\"\")","v":""}]
[null,null,null,{"$f":"IFERROR(VLOOKUP(C816,PriceList!A:C,3,FALSE),\"\")","v":""}]
[null,null,null,{"$f":"IFERROR(VLOOKUP(C817,PriceList!A:C,3,FALSE),\"\")","v":""}]
[null,null,null,{"$f":"IFERROR(VLOOKUP(C818,PriceList!A:C,3,FALSE),\"\")","v":""}]
[null,null,null,{"$f":"IFERROR(VLOOKUP(C819,PriceList!A:C,3,FALSE),\"\")","v":""}]
[null,null,null,{"$f":"IFERROR(VLOOKUP(C820,PriceList!A:C,3,FALSE),\"\")","v":""}]
[null,null,null,{"$f":"IFERROR(VLOOKUP(C821,PriceList!A:C,3,FALSE),\"\")","v":""}]
[null,null,null,{"$f":"IFERROR(VLOOKUP(C822,PriceList!A:C,3,FALSE),\"\")","v":""}]
[null,null,null,{"$f":"IFERROR(VLOOKUP(C823,PriceList!A:C,3,FALSE),\"\")","v":""}]
[null,null,null,{"$f":"IFERROR(VLOOKUP(C824,PriceList!A:C,3,FALSE),\"\")","v":""}]
[null,null,null,{"$f":"IFERROR(VLOOKUP(C825,PriceList!A:C,3,FALSE),\"\")","v":""}]
[null,null,null,{"$f":"IFERROR(VLOOKUP(C826,PriceList!A:C,3,FALSE),\"\")","v":""}]
[null,null,null,{"$f":"IFERROR(VLOOKUP(C827,PriceList!A:C,3,FALSE),\"\")","v":""}]
[null,null,null,{"$f":"IFERROR(VLOOKUP(C828,PriceList!A:C,3,FALSE),\"\")","v":""}]
[null,null,null,{"$f":"IFERROR(VLOOKUP(C829,PriceList!A:C,3,FALSE),\"\")","v":""}]
[null,null,null,{"$f":"IFERROR(VLOOKUP(C830,PriceList!A:C,3,FALSE),\"\")","v":""}]
[null,null,null,{"$f":"IFERROR(VLOOKUP(C831,PriceList!A:C,3,FALSE),\"\")","v":""}]
[null,null,null,{"$f":"IFERROR(VLOOKUP(C832,PriceList!A:C,3,FALSE),\"\")","v":""}]
[null,null,null,{"$f":"IFERROR(VLOOKUP(C833,PriceList!A:C,3,FALSE),\"\")","v":""}]
[null,null,null,{"$f":"IFERROR(VLOOKUP(C834,PriceList!A:C,3,FALSE),\"\")","v":""}]
[null,null,null,{"$f":"IFERROR(VLOOKUP(C835,PriceList!A:C,3,FALSE),\"\")","v":""}]
[null,null,null,{"$f":"IFERROR(VLOOKUP(C836,PriceList!A:C,3,FALSE),\"\")","v":""}]
[null,null,null,{"$f":"IFERROR(VLOOKUP(C837,PriceList!A:C,3,FALSE),\"\")","v":""}]
[null,null,null,{"$f":"IFERROR(VLOOKUP(C838,PriceList!A:C,3,FALSE),\"\")","v":""}]
[null,null,null,{"$f":"IFERROR(VLOOKUP(C839,PriceList!A:C,3,FALSE),\"\")","v":""}]
[null,null,null,{"$f":"IFERROR(VLOOKUP(C840,PriceList!A:C,3,FALSE),\"\")","v":""}]
[null,null,null,{"$f":"IFERROR(VLOOKUP(C841,PriceList!A:C,3,FALSE),\"\")","v":""}]
[null,null,null,{"$f":"IFERROR(VLOOKUP(C842,PriceList!A:C,3,FALSE),\"\")","v":""}]
[null,null,null,{"$f":"IFERROR(VLOOKUP(C843,PriceList!A:C,3,FALSE),\"\")","v":""}]
[null,null,null,{"$f":"IFERROR(VLOOKUP(C844,PriceList!A:C,3,FALSE),\"\")","v":""}]
[null,null,null,{"$f":"IFERROR(VLOOKUP(C845,PriceList!A:C,3,FALSE),\"\")","v":""}]
[null,null,null,{"$f":"IFERROR(VLOOKUP(C846,PriceList!A:C,3,FALSE),\"\")","v":""}]
[null,null,null,{"$f":"IFERROR(VLOOKUP(C847,PriceList!A:C,3,FALSE),\"\")","v":""}]
[null,null,null,{"$f":"IFERROR(VLOOKUP(C848,PriceList!A:C,3,FALSE),\"\")","v":""}]
[null,null,null,{"$f":"IFERROR(VLOOKUP(C849,PriceList!A:C,3,FALSE),\"\")","v":""}]
[null,null,null,{"$f":"IFERROR(VLOOKUP(C850,PriceList!A:C,3,FALSE),\"\")","v":""}]
[null,null,null,{"$f":"IFERROR(VLOOKUP(C851,PriceList!A:C,3,FALSE),\"\")","v":""}]
[null,null,null,{"$f":"IFERROR(VLOOKUP(C852,PriceList!A:C,3,FALSE),\"\")","v":""}]
[null,null,null,{"$f":"IFERROR(VLOOKUP(C853,PriceList!A:C,3,FALSE),\"\")","v":""}]
[null,null,null,{"$f":"IFERROR(VLOOKUP(C854,PriceList!A:C,3,FALSE),\"\")","v":""}]
[null,null,null,{"$f":"IFERROR(VLOOKUP(C855,PriceList!A:C,3,FALSE),\"\")","v":""}]
[null,null,null,{"$f":"IFERROR(VLOOKUP(C856,PriceList!A:C,3,FALSE),\"\")","v":""}]
[null,null,null,{"$f":"IFERROR(VLOOKUP(C857,PriceList!A:C,3,FALSE),\"\")","v":""}]
[null,null,null,{"$f":"IFERROR(VLOOKUP(C858,PriceList!A:C,3,FALSE),\"\")","v":""}]
[null,null,null,{"$f":"IFERROR(VLOOKUP(C859,PriceList!A:C,3,FALSE),\"\")","v":""}]
[null,null,null,{"$f":"IFERROR(VLOOKUP(C860,PriceList!A:C,3,FALSE),\"\")","v":""}]
[null,null,null,{"$f":"IFERROR(VLOOKUP(C861,PriceList!A:C,3,FALSE),\"\")","v":""}]
[null,null,null,{"$f":"IFERROR(VLOOKUP(C862,PriceList!A:C,3,FALSE),\"\")","v":""}]
[null,null,null,{"$f":"IFERROR(VLOOKUP(C863,PriceList!A:C,3,FALSE),\"\")","v":""}]
[null,null,null,{"$f":"IFERROR(VLOOKUP(C864,PriceList!A:C,3,FALSE),\"\")","v":""}]
[null,null,null,{"$f":"IFERROR(VLOOKUP(C865,PriceList!A:C,3,FALSE),\"\")","v":""}]
[null,null,null,{"$f":"IFERROR(VLOOKUP(C866,PriceList!A:C,3,FALSE),\"\")","v":""}]
[null,null,null,{"$f":"IFERROR(VLOOKUP(C867,PriceList!A:C,3,FALSE),\"\")","v":""}]
[null,null,null,{"$f":"IFERROR(VLOOKUP(C868,PriceList!A:C,3,FALSE),\"\")","v":""}]
[null,null,null,{"$f":"IFERROR(VLOOKUP(C869,PriceList!A:C,3,FALSE),\"\")","v":""}]
[null,null,null,{"$f":"IFERROR(VLOOKUP(C870,PriceList!A:C,3,FALSE),\"\")","v":""}]
[null,null,null,{"$f":"IFERROR(VLOOKUP(C871,PriceList!A:C,3,FALSE),\"\")","v":""}]
[null,null,null,{"$f":"IFERROR(VLOOKUP(C872,PriceList!A:C,3,FALSE),\"\")","v":""}]
[null,null,null,{"$f":"IFERROR(VLOOKUP(C873,PriceList!A:C,3,FALSE),\"\")","v":""}]
[null,null,null,{"$f":"IFERROR(VLOOKUP(C874,PriceList!A:C,3,FALSE),\"\")","v":""}]
[null,null,null,{"$f":"IFERROR(VLOOKUP(C875,PriceList!A:C,3,FALSE),\"\")","v":""}]
[null,null,null,{"$f":"IFERROR(VLOOKUP(C876,PriceList!A:C,3,FALSE),\"\")","v":""}]
[null,null,null,{"$f":"IFERROR(VLOOKUP(C877,PriceList!A:C,3,FALSE),\"\")","v":""}]
[null,null,null,{"$f":"IFERROR(VLOOKUP(C878,PriceList!A:C,3,FALSE),\"\")","v":""}]
[null,null,null,{"$f":"IFERROR(VLOOKUP(C879,PriceList!A:C,3,FALSE),\"\")","v":""}]
[null,null,null,{"$f":"IFERROR(VLOOKUP(C880,PriceList!A:C,3,FALSE),\"\")","v":""}]
[null,null,null,{"$f":"IFERROR(VLOOKUP(C881,PriceList!A:C,3,FALSE),\"\")","v":""}]
[null,null,null,{"$f":"IFERROR(VLOOKUP(C882,PriceList!A:C,3,FALSE),\"\")","v":""}]
[null,null,null,{"$f":"IFERROR(VLOOKUP(C883,PriceList!A:C,3,FALSE),\"\")","v":""}]
[null,null,null,{"$f":"IFERROR(VLOOKUP(C884,PriceList!A:C,3,FALSE),\"\")","v":""}]
[null,null,null,{"$f":"IFERROR(VLOOKUP(C885,PriceList!A:C,3,FALSE),\"\")","v":""}]
[null,null,null,{"$f":"IFERROR(VLOOKUP(C886,PriceList!A:C,3,FALSE),\"\")","v":""}]
[null,null,null,{"$f":"IFERROR(VLOOKUP(C887,PriceList!A:C,3,FALSE),\"\")","v":""}]
[null,null,null,{"$f":"IFERROR(VLOOKUP(C888,PriceList!A:C,3,FALSE),\"\")","v":""}]
[null,null,null,{"$f":"IFERROR(VLOOKUP(C889,PriceList!A:C,3,FALSE),\"\")","v":""}]
[null,null,null,{"$f":"IFERROR(VLOOKUP(C890,PriceList!A:C,3,FALSE),\"\")","v":""}]
[null,null,null,{"$f":"IFERROR(VLOOKUP(C891,PriceList!A:C,3,FALSE),\"\")","v":""}]
[null,null,null,{"$f":"IFERROR(VLOOKUP(C892,PriceList!A:C,3,FALSE),\"\")","v":""}]
[null,null,null,{"$f":"IFERROR(VLOOKUP(C893,PriceList!A:C,3,FALSE),\"\")","v":""}]
[null,null,null,{"$f":"IFERROR(VLOOKUP(C894,PriceList!A:C,3,FALSE),\"\")","v":""}]
[null,null,null,{"$f":"IFERROR(VLOOKUP(C895,PriceList!A:C,3,FALSE),\"\")","v":""}]
[null,null,null,{"$f":"IFERROR(VLOOKUP(C896,PriceList!A:C,3,FALSE),\"\")","v":""}]
[null,null,null,{"$f":"IFERROR(VLOOKUP(C897,PriceList!A:C,3,FALSE),\"\")","v":""}]
[null,null,null,{"$f":"IFERROR(VLOOKUP(C898,PriceList!A:C,3,FALSE),\"\")","v":""}]
[null,null,null,{"$f":"IFERROR(VLOOKUP(C899,PriceList!A:C,3,FALSE),\"\")","v":""}]
[null,null,null,{"$f":"IFERROR(VLOOKUP(C900,PriceList!A:C,3,FALSE),\"\")","v":""}]
[null,null,null,{"$f":"IFERROR(VLOOKUP(C901,PriceList!A:C,3,FALSE),\"\")","v":""}]
[null,null,null,{"$f":"IFERROR(VLOOKUP(C902,PriceList!A:C,3,FALSE),\"\")","v":""}]
[null,null,null,{"$f":"IFERROR(VLOOKUP(C903,PriceList!A:C,3,FALSE),\"\")","v":""}]
[null,null,null,{"$f":"IFERROR(VLOOKUP(C904,PriceList!A:C,3,FALSE),\"\")","v":""}]
[null,null,null,{"$f":"IFERROR(VLOOKUP(C905,PriceList!A:C,3,FALSE),\"\")","v":""}]
[null,null,null,{"$f":"IFERROR(VLOOKUP(C906,PriceList!A:C,3,FALSE),\"\")","v":""}]
[null,null,null,{"$f":"IFERROR(VLOOKUP(C907,PriceList!A:C,3,FALSE),\"\")","v":""}]
[null,null,null,{"$f":"IFERROR(VLOOKUP(C908,PriceList!A:C,3,FALSE),\"\")","v":""}]
[null,null,null,{"$f":"IFERROR(VLOOKUP(C909,PriceList!A:C,3,FALSE),\"\")","v":""}]
[null,null,null,{"$f":"IFERROR(VLOOKUP(C910,PriceList!A:C,3,FALSE),\"\")","v":""}]
[null,null,null,{"$f":"IFERROR(VLOOKUP(C911,PriceList!A:C,3,FALSE),\"\")","v":""}]
[null,null,null,{"$f":"IFERROR(VLOOKUP(C912,PriceList!A:C,3,FALSE),\"\")","v":""}]
[null,null,null,{"$f":"IFERROR(VLOOKUP(C913,PriceList!A:C,3,FALSE),\"\")","v":""}]
[null,null,null,{"$f":"IFERROR(VLOOKUP(C914,PriceList!A:C,3,FALSE),\"\")","v":""}]
[null,null,null,{"$f":"IFERROR(VLOOKUP(C915,PriceList!A:C,3,FALSE),\"\")","v":""}]
[null,null,null,{"$f":"IFERROR(VLOOKUP(C916,PriceList!A:C,3,FALSE),\"\")","v":""}]
[null,null,null,{"$f":"IFERROR(VLOOKUP(C917,PriceList!A:C,3,FALSE),\"\")","v":""}]
[null,null,null,{"$f":"IFERROR(VLOOKUP(C918,PriceList!A:C,3,FALSE),\"\")","v":""}]
[null,null,null,{"$f":"IFERROR(VLOOKUP(C919,PriceList!A:C,3,FALSE),\"\")","v":""}]
[null,null,null,{"$f":"IFERROR(VLOOKUP(C920,PriceList!A:C,3,FALSE),\"\")","v":""}]
[null,null,null,{"$f":"IFERROR(VLOOKUP(C921,PriceList!A:C,3,FALSE),\"\")","v":""}]
[null,null,null,{"$f":"IFERROR(VLOOKUP(C922,PriceList!A:C,3,FALSE),\"\")","v":""}]
[null,null,null,{"$f":"IFERROR(VLOOKUP(C923,PriceList!A:C,3,FALSE),\"\")","v":""}]
[null,null,null,{"$f":"IFERROR(VLOOKUP(C924,PriceList!A:C,3,FALSE),\"\")","v":""}]
[null,null,null,{"$f":"IFERROR(VLOOKUP(C925,PriceList!A:C,3,FALSE),\"\")","v":""}]
[null,null,null,{"$f":"IFERROR(VLOOKUP(C926,PriceList!A:C,3,FALSE),\"\")","v":""}]
[null,null,null,{"$f":"IFERROR(VLOOKUP(C927,PriceList!A:C,3,FALSE),\"\")","v":""}]
[null,null,null,{"$f":"IFERROR(VLOOKUP(C928,PriceList!A:C,3,FALSE),\"\")","v":""}]
[null,null,null,{"$f":"IFERROR(VLOOKUP(C929,PriceList!A:C,3,FALSE),\"\")","v":""}]
[null,null,null,{"$f":"IFERROR(VLOOKUP(C930,PriceList!A:C,3,FALSE),\"\")","v":""}]
[null,null,null,{"$f":"IFERROR(VLOOKUP(C931,PriceList!A:C,3,FALSE),\"\")","v":""}]
[null,null,null,{"$f":"IFERROR(VLOOKUP(C932,PriceList!A:C,3,FALSE),\"\")","v":""}]
[null,null,null,{"$f":"IFERROR(VLOOKUP(C933,PriceList!A:C,3,FALSE),\"\")","v":""}]
[null,null,null,{"$f":"IFERROR(VLOOKUP(C934,PriceList!A:C,3,FALSE),\"\")","v":""}]
[null,null,null,{"$f":"IFERROR(VLOOKUP(C935,PriceList!A:C,3,FALSE),\"\")","v":""}]
[null,null,null,{"$f":"IFERROR(VLOOKUP(C936,PriceList!A:C,3,FALSE),\"\")","v":""}]
[null,null,null,{"$f":"IFERROR(VLOOKUP(C937,PriceList!A:C,3,FALSE),\"\")","v":""}]
[null,null,null,{"$f":"IFERROR(VLOOKUP(C938,PriceList!A:C,3,FALSE),\"\")","v":""}]
[null,null,null,{"$f":"IFERROR(VLOOKUP(C939,PriceList!A:C,3,FALSE),\"\")","v":""}]
[null,null,null,{"$f":"IFERROR(VLOOKUP(C940,PriceList!A:C,3,FALSE),\"\")","v":""}]
[null,null,null,{"$f":"IFERROR(VLOOKUP(C941,PriceList!A:C,3,FALSE),\"\")","v":""}]
[null,null,null,{"$f":"IFERROR(VLOOKUP(C942,PriceList!A:C,3,FALSE),\"\")","v":""}]
[null,null,null,{"$f":"IFERROR(VLOOKUP(C943,PriceList!A:C,3,FALSE),\"\")","v":""}]
[null,null,null,{"$f":"IFERROR(VLOOKUP(C944,PriceList!A:C,3,FALSE),\"\")","v":""}]
[null,null,null,{"$f":"IFERROR(VLOOKUP(C945,PriceList!A:C,3,FALSE),\"\")","v":""}]
[null,null,null,{"$f":"IFERROR(VLOOKUP(C946,PriceList!A:C,3,FALSE),\"\")","v":""}]
[null,null,null,{"$f":"IFERROR(VLOOKUP(C947,PriceList!A:C,3,FALSE),\"\")","v":""}]
[null,null,null,{"$f":"IFERROR(VLOOKUP(C948,PriceList!A:C,3,FALSE),\"\")","v":""}]
[null,null,null,{"$f":"IFERROR(VLOOKUP(C949,PriceList!A:C,3,FALSE),\"\")","v":""}]
[null,null,null,{"$f":"IFERROR(VLOOKUP(C950,PriceList!A:C,3,FALSE),\"\")","v":""}]
[null,null,null,{"$f":"IFERROR(VLOOKUP(C951,PriceList!A:C,3,FALSE),\"\")","v":""}]
[null,null,null,{"$f":"IFERROR(VLOOKUP(C952,PriceList!A:C,3,FALSE),\"\")","v":""}]
[null,null,null,{"$f":"IFERROR(VLOOKUP(C953,PriceList!A:C,3,FALSE),\"\")","v":""}]
[null,null,null,{"$f":"IFERROR(VLOOKUP(C954,PriceList!A:C,3,FALSE),\"\")","v":""}]
[null,null,null,{"$f":"IFERROR(VLOOKUP(C955,PriceList!A:C,3,FALSE),\"\")","v":""}]
[null,null,null,{"$f":"IFERROR(VLOOKUP(C956,PriceList!A:C,3,FALSE),\"\")","v":""}]
[null,null,null,{"$f":"IFERROR(VLOOKUP(C957,PriceList!A:C,3,FALSE),\"\")","v":""}]
[null,null,null,{"$f":"IFERROR(VLOOKUP(C958,PriceList!A:C,3,FALSE),\"\")","v":""}]
[null,null,null,{"$f":"IFERROR(VLOOKUP(C959,PriceList!A:C,3,FALSE),\"\")","v":""}]
[null,null,null,{"$f":"IFERROR(VLOOKUP(C960,PriceList!A:C,3,FALSE),\"\")","v":""}]
[null,null,null,{"$f":"IFERROR(VLOOKUP(C961,PriceList!A:C,3,FALSE),\"\")","v":""}]
[null,null,null,{"$f":"IFERROR(VLOOKUP(C962,PriceList!A:C,3,FALSE),\"\")","v":""}]
[null,null,null,{"$f":"IFERROR(VLOOKUP(C963,PriceList!A:C,3,FALSE),\"\")","v":""}]
[null,null,null,{"$f":"IFERROR(VLOOKUP(C964,PriceList!A:C,3,FALSE),\"\")","v":""}]
[null,null,null,{"$f":"IFERROR(VLOOKUP(C965,PriceList!A:C,3,FALSE),\"\")","v":""}]
[null,null,null,{"$f":"IFERROR(VLOOKUP(C966,PriceList!A:C,3,FALSE),\"\")","v":""}]
[null,null,null,{"$f":"IFERROR(VLOOKUP(C967,PriceList!A:C,3,FALSE),\"\")","v":""}]
[null,null,null,{"$f":"IFERROR(VLOOKUP(C968,PriceList!A:C,3,FALSE),\"\")","v":""}]
[null,null,null,{"$f":"IFERROR(VLOOKUP(C969,PriceList!A:C,3,FALSE),\"\")","v":""}]
[null,null,null,{"$f":"IFERROR(VLOOKUP(C970,PriceList!A:C,3,FALSE),\"\")","v":""}]
[null,null,null,{"$f":"IFERROR(VLOOKUP(C971,PriceList!A:C,3,FALSE),\"\")","v":""}]
[null,null,null,{"$f":"IFERROR(VLOOKUP(C972,PriceList!A:C,3,FALSE),\"\")","v":""}]
[null,null,null,{"$f":"IFERROR(VLOOKUP(C973,PriceList!A:C,3,FALSE),\"\")","v":""}]
[null,null,null,{"$f":"IFERROR(VLOOKUP(C974,PriceList!A:C,3,FALSE),\"\")","v":""}]
[null,null,null,{"$f":"IFERROR(VLOOKUP(C975,PriceList!A:C,3,FALSE),\"\")","v":""}]
[null,null,null,{"$f":"IFERROR(VLOOKUP(C976,PriceList!A:C,3,FALSE),\"\")","v":""}]
[null,null,null,{"$f":"IFERROR(VLOOKUP(C977,PriceList!A:C,3,FALSE),\"\")","v":""}]
[null,null,null,{"$f":"IFERROR(VLOOKUP(C978,PriceList!A:C,3,FALSE),\"\")","v":""}]
[null,null,null,{"$f":"IFERROR(VLOOKUP(C979,PriceList!A:C,3,FALSE),\"\")","v":""}]
[null,null,null,{"$f":"IFERROR(VLOOKUP(C980,PriceList!A:C,3,FALSE),\"\")","v":""}]
[null,null,null,{"$f":"IFERROR(VLOOKUP(C981,PriceList!A:C,3,FALSE),\"\")","v":""}]
[null,null,null,{"$f":"IFERROR(VLOOKUP(C982,PriceList!A:C,3,FALSE),\"\")","v":""}]
[null,null,null,{"$f":"IFERROR(VLOOKUP(C983,PriceList!A:C,3,FALSE),\"\")","v":""}]
[null,null,null,{"$f":"IFERROR(VLOOKUP(C984,PriceList!A:C,3,FALSE),\"\")","v":""}]
[null,null,null,{"$f":"IFERROR(VLOOKUP(C985,PriceList!A:C,3,FALSE),\"\")","v":""}]
[null,null,null,{"$f":"IFERROR(VLOOKUP(C986,PriceList!A:C,3,FALSE),\"\")","v":""}]
[null,null,null,{"$f":"IFERROR(VLOOKUP(C987,PriceList!A:C,3,FALSE),\"\")","v":""}]
[null,null,null,{"$f":"IFERROR(VLOOKUP(C988,PriceList!A:C,3,FALSE),\"\")","v":""}]
[null,null,null,{"$f":"IFERROR(VLOOKUP(C989,PriceList!A:C,3,FALSE),\"\")","v":""}]
[null,null,null,{"$f":"IFERROR(VLOOKUP(C990,PriceList!A:C,3,FALSE),\"\")","v":""}]
[null,null,null,{"$f":"IFERROR(VLOOKUP(C991,PriceList!A:C,3,FALSE),\"\")","v":""}]
[null,null,null,{"$f":"IFERROR(VLOOKUP(C992,PriceList!A:C,3,FALSE),\"\")","v":""}]
[null,null,null,{"$f":"IFERROR(VLOOKUP(C993,PriceList!A:C,3,FALSE),\"\")","v":""}]
[null,null,null,{"$f":"IFERROR(VLOOKUP(C994,PriceList!A:C,3,FALSE),\"\")","v":""}]
[null,null,null,{"$f":"IFERROR(VLOOKUP(C995,PriceList!A:C,3,FALSE),\"\")","v":""}]
[null,null,null,{"$f":"IFERROR(VLOOKUP(C996,PriceList!A:C,3,FALSE),\"\")","v":""}]
[null,null,null,{"$f":"IFERROR(VLOOKUP(C997,PriceList!A:C,3,FALSE),\"\")","v":""}]
[null,null,null,{"$f":"IFERROR(VLOOKUP(C998,PriceList!A:C,3,FALSE),\"\")","v":""}]
[null,null,null,{"$f":"IFERROR(VLOOKUP(C999,PriceList!A:C,3,FALSE),\"\")","v":""}]
[null,null,null,{"$f":"IFERROR(VLOOKUP(C1000,PriceList!A:C,3,FALSE),\"\")","v":""}]
[null,null,null,{"$f":"IFERROR(VLOOKUP(C1001,PriceList!A:C,3,FALSE),\"\")","v":""}]
[null,null,null,{"$f":"IFERROR(VLOOKUP(C1002,PriceList!A:C,3,FALSE),\"\")","v":""}]
[null,null,null,{"$f":"IFERROR(VLOOKUP(C1003,PriceList!A:C,3,FALSE),\"\")","v":""}]

{"sheet":"PriceList","index":2,"n_rows":38,"n_cols":3,"rows_kept":38,"cut":false,"hidden":false,"merged":[]}
["2024 Boston Coffee Cake Mail Order Price List - Before Discounts"]
["Item","Name","Price"]
["4101700","3 lb. Original Cinnamon Walnut ",39.99]
["4101701","3 lb. Cinnamon Walnut- Red BCC Signature Tin",49.99]
["4101702","3 lb. Cinnamon Walnut- Scroll Tin",49.99]
["4101704","3 lb. Cinnamon Walnut- Snowy Drive Tin",49.99]
["4103700","3 lb. Blueberry Blizzard",39.99]
["4106700","3 lb. Lemon Burst",39.99]
["4109700","3 lb. Golden Pumpkin",39.99]
["4115700","3 lb. Marble Madness",39.99]
["4120700","3 lb. Caramel Apple Harvest",39.99]
["4121700","3 lb. Cranberry Orange Nut ",39.99]
["4123700","3 lb. N.E. Tradition Holiday Cake",39.99]
["4124700","3 lb. Triple Chocolate",39.99]
["4401202","1.5 lb. Cinnamon Walnut - 2 Pack",45.99]
["4401203","1.5 lb. Cinnamon Walnut - 3 Pack ",64.989999999999995]
["4401204","1.5 lb. Cinnamon Walnut - 4 Pack",79.989999999999995]
["4410081","1.5 lb. Assorted - 4 Pack",79.989999999999995]
["4401208","1.5 lb. Cinnamon Walnut - 8 Pack",149.99]
["4401904","3 lb. Cinnamon Walnut - 4 Pack",139.99]
["4410084","Celebration Tower",89.99]
["4410018","Boston Coffee Cake Tower",109.99]
["4440202","1.5 lb. 2 Pack Cinnamon Walnut & Blueberry Blizzard",45.99]
["4441202","1.5 lb. 2 Pack Cinnamon Walnut & Marble Madness",45.99]
["4449202","1.5 lb. 2 Pack Cinnamon Walnut & Triple Chocolate ",45.99]
["4451202","1.5 lb. 2 Pack Cinnamon Walnut & Caramel Apple",45.99]
["4466203","1.5 lb. 3 Pack Cinnamon Walnut/Caramel Apple/Triple Chocolate",64.989999999999995]
["4464203","1.5 lb. 3 Pack Cinnamon Walnut/Blueberry  Blizzard/Marble Madness",64.989999999999995]
["4552906","Mini Coffee Cakes - 6",45.99]
["4552912","Mini Coffee Cakes - 12",69.989999999999995]
["4410060","Boston Whoopies",38.99]
["4410061","Boston Goodies",54.99]
["4430700","The Great One - Cinnamon Swirl",29.99]
["4430748","The Grand One",45.99]
["4401704","1.5 lb. Cinnamon Walnut - Thank You Tin",39.99]
["4401703","1.5 lb. Cinnamon Walnut  - Thinking of You Tin",39.99]
["4401702","1.5 lb. Cinnamon Walnut - Happy Birthday Tin",39.99]
["4410082","The Big Whoop",54.99]

{"sheet":"Lists","index":3,"n_rows":252,"n_cols":3,"rows_kept":252,"cut":false,"hidden":false,"merged":[]}
["United States","Miss","Jr."]
["Canada","Ms.","Sr."]
["Australia","Miss","JD"]
["Austria","Mrs.","MD"]
["Azerbaijan","Mr.","DO"]
["Azores","Mr&Mrs","DC"]
["Bahamas","Rev.","PhD"]
["Bahrain","Fr.","II"]
["Bangladesh","Dr.","III"]
["Barbados","Dr&Mrs","IV"]
["Belgium","Atty.","V"]
["Belize","Prof.","VI"]
["Benin","Hon."]
["Bermuda","Pres."]
["Bhutan","Gov."]
["Bolivia","Ofc."]
["Bosnia (Hercgovina)","Msgr."]
["Botswana","Sr."]
["Bouvet Island","Br."]
["Brazil","Supt."]
["British Forces Post Office","Rep."]
["British Indian Ocean Terri","Sen."]
["British Virgin Islands","Amb."]
["Brunei","Treas."]
["Bulgaria","Sec."]
["Burkina Faso","Pvt."]
["Burma","Cpl."]
["Burundi","Sgt."]
["Byelorussia (Belarus)","Adm."]
["Cambodia","Maj."]
["Cameroon","Capt."]
["Canary Islands","Cmdr."]
["Cape Verde","Col."]
["Cayman Islands","Lt. "]
["Central African Republic","Gen."]
["Chad","The"]
["Chile"]
["China"]
["Christmas Island"]
["Cocos (keeling) Islands"]
["Colombia"]
["Comoros"]
["Congo"]
["Congo, The Democratic Repu"]
["Cook Islands"]
["Corsica"]
["Costa Rica"]
["Cote d'Ivoire"]
["Croatia"]
["Cuba"]
["Cyprus"]
["Czech Republic"]
["Czechoslovakia"]
["Denmark"]
["Djibouti"]
["Dominica"]
["Dominican Rep."]
["East Timor"]
["Ecuador"]
["Egypt"]
["El Salvador"]
["Equatorial Guinea"]
["Eritrea"]
["Estonia"]
["Ethiopia"]
["Falkland Islands"]
["Faroe Islands"]
["Fiji"]
["Finland"]
["France"]
["France, Metropolitan"]
["French Guiana"]
["French Polynesia"]
["French Southern Territorie"]
["Gabon"]
["Gambia"]
["Germany"]
["Ghana"]
["Gibraltar"]
["Great Britain"]
["Greece"]
["Greenland"]
["Grenada"]
["Guadeloupe"]
["Guam"]
["Guatemala"]
["Guinea"]
["Guinea-Bissau"]
["Guyana"]
["Haiti"]
["Heard And Mc Donald Island"]
["Honduras"]
["Hong Kong"]
["Hungary"]
["Iceland"]
["India"]
["Indonesia"]
["Iran"]
["Iraq"]
["Ireland (Eire)"]
["Israel"]
["Italy"]
["Jamaica"]
["Japan"]
["Jordan"]
["Kampuchea"]
["Kazakhstan"]
["Kenya"]
["Kirghizia (Kyrgyzstan)"]
["Kiribati"]
["Korea, Democ. Peoples Rep."]
["Korea, Democratic People's"]
["Kuwait, Republic of Kuwait"]
["La Luia"]
["Lao"]
["Lao People's Democratic Re"]
["Latvia"]
["Lebanon"]
["Lesotho"]
["Liberia"]
["Libya"]
["Liechtenstein"]
["Lithuania"]
["Lithvania"]
["Luxembourg"]
["Macao"]
["Macedonia"]
["Macedonia, The Former Yugo"]
["Madagascar"]
["Madeira Islands"]
["Malawi"]
["Malaysia"]
["Maldives"]
["Mali"]
["Malta"]
["Marshall Islands"]
["Martinique"]
["Mauritania"]
["Mauritius"]
["Mayotte"]
["Mexico"]
["Micronesia, Federated Stat"]
["MocDavia"]
["Moldova, Republic Of"]
["Monaco"]
["Mongolia"]
["Montserrat"]
["Morocco"]
["Mozambique"]
["Myanmar"]
["name"]
["Namibia"]
["Nauru"]
["Nepal"]
["Netherlands"]
["Netherlands Antilies"]
["New Caledonia"]
["New Zealand"]
["Nicaragua"]
["Niger"]
["Nigeria"]
["Niue"]
["Norfolk Island"]
["Northern Mariana Islands"]
["Norway"]
["Oman"]
["Pakistan"]
["Palau"]
["Palestinian Territory, Occ"]
["Panama"]
["Papua New Guinea"]
["Paraguay"]
["Peru"]
["Philippines"]
["Pitcairn Islands"]
["Poland"]
["Portugal"]
["Puerto Rico"]
["Qatar"]
["Republic of Georgia"]
["Reunion"]
["Romania"]
["Russia"]
["Rwanda"]
["Saint Helena"]
["Saint Lucia"]
["Saint Pierre & Miquelon"]
["Saint Vincent And The Gren"]
["San Marino"]
["Sao Tome & Principe"]
["Saudi Arabia"]
["Scotland"]
["Senegal"]
["Serbia (Montenegro)"]
["Seychelles"]
["Sierra Leone"]
["Singapore"]
["Slovakia"]
["Slovakia (slovak Republic)"]
["Slovenia"]
["Solomon Islands"]
["Somalia"]
["South Africa"]
["South Georgia And The Sout"]
["South Korea"]
["Spain"]
["Sri Lanka"]
["St. Christopher & Nevis"]
["St. Vincent&The Grenadines"]
["Sudan"]
["Suriname"]
["Svalbard And Jan Mayen Isl"]
["Swaziland"]
["Sweden"]
["Switzerland"]
["Syria"]
["Tadzhikistan"]
["Taiwan"]
["Taiwan, Province Of China"]
["Tajikistan"]
["Tanzania"]
["Thailand"]
["Togo"]
["Tokelau"]
["Tonga"]
["Trinidad and Tobago"]
["Tristan da Cunha"]
["Tunisia"]
["Turkey"]
["Turkmenistan"]
["Turks & Caicos Islands"]
["Tuvalu"]
["U.S.S.R. (No Longer Used)"]
["Uganda"]
["Ukraine"]
["United Arab Emirates"]
["United States Minor Outlyi"]
["Uruguay"]
["Uzbekistan"]
["Vanuatu"]
["Vatican City"]
["Venezuela"]
["Vietnam"]
["Virgin Islands (U.S.)"]
["Wallis & Futuna Islands"]
["Western Sahara"]
["Western Samoa"]
["Yemen"]
["Yugoslavia"]
["Zaire"]
["Zambia"]
["Zimbabwe"]